Workbook

Sheet Schedule 1
A1: Rate=G | B1: WESTERN WASTE MANAGEMENT FACILITY
A2: <NewDataSet>· <xs:schema id="NewDataSet" xmlns="" xmlns:xs="http://www.w3.org/2001/XMLSchema" xmlns:msdata="urn:schemas-microsoft-com:xml-msdata">· <xs:element name="NewDataSet" msdata:IsDataSet="true" msdata:MainDataTable="SummaryItems" msdata:UseCurrentLocale="true">· <xs:complexType>· <xs:choice minOccurs="0" maxOccurs="unbounded">· <xs:element name="SummaryItems">· <xs:complexType>· <xs:sequence>· <xs:element name="ContractNo" type="xs:short" minOccurs="0" />· <xs:element name="ScheduleNo" type="xs:short" minOccurs="0" />· <xs:element name="SortNo" type="xs:short" minOccurs="0" />· <xs:element name="Item" type="xs:string" minOccurs="0" />· <xs:element name="SubTotalText" type="xs:string" minOccurs="0" />· <xs:element name="Description" type="xs:string" minOccurs="0" />· <xs:element name="CalcType" type="xs:string" minOccurs="0" />· <xs:element name="CalcValue" type="xs:double" minOccurs="0" />· <xs:element name="UseFirstSubTotal" type="xs:boolean" minOccurs="0" />· <xs:element name="ExclFromWorks" type="xs:boolean" minOccurs="0" />· <xs:element name="ExclFromProjected" type="xs:boolean" minOccurs="0" />· </xs:sequence>· </xs:complexType>· </xs:element>· </xs:choice>· </xs:complexType>· </xs:element>· </xs:schema>· <SummaryItems>· <ContractNo>1</ContractNo>· <ScheduleNo>0</ScheduleNo>· <SortNo>1</SortNo>· <Item>1</Item>· <SubTotalText>SUBTOTAL 1</SubTotalText>· <Description>CONTINGENCIES (10% OF SUBTOTAL 1)</Description>· <CalcType>%</CalcType>· <CalcValue>10</CalcValue>· <UseFirstSubTotal>true</UseFirstSubTotal>· <ExclFromWorks>false</ExclFromWorks>· <ExclFromProjected>false</ExclFromProjected>· </SummaryItems>· <SummaryItems>· <ContractNo>1</ContractNo>· <ScheduleNo>0</ScheduleNo>· <SortNo>3</SortNo>· <Item>3</Item>· <SubTotalText>SUBTOTAL 3</SubTotalText>· <Description>VAT (15% OF SUBTOTAL 3)</Description>· <CalcType>%</CalcType>· <CalcValue>15</CalcValue>· <UseFirstSubTotal>false</UseFirstSubTotal>· <ExclFromWorks>false</ExclFromWorks>· <ExclFromProjected>false</ExclFromProjected>· </SummaryItems>· <SummaryItems>· <ContractNo>1</ContractNo>· <ScheduleNo>0</ScheduleNo>· <SortNo>2</SortNo>· <Item>2</Item>· <SubTotalText>SUBTOTAL 2</SubTotalText>· <Description>CONTRACT PRICE ADJUSTMENT (10% OF SUBTOTAL 2)</Description>· <CalcType>%</CalcType>· <CalcValue>10</CalcValue>· <UseFirstSubTotal>false</UseFirstSubTotal>· <ExclFromWorks>false</ExclFromWorks>· <ExclFromProjected>false</ExclFromProjected>· </SummaryItems>·</NewDataSet> | B2: Contract A - Roads, Platforms, Building and Services
B3: A: PRELIMINARY AND GENERAL
H4: 1: FIXED CHARGES
B5: ITEM NO | C5: PAYMENT | D5: DESCRIPTION | E5: UNIT | F5: QTY | G5: RATE | H5: AMOUNT R
A6: 198 | C6: SANS 1200 A | D6: SECTION 1: FIXED-CHARGE ITEMS
A8: 199 | B8: A1 | C8: 8.3 | D8: FIXED-CHARGE ITEMS
A10: 200 | B10: A1.1 | C10: 8.3.1 | D10: Contractual Requirements | E10: Sum | F10: 1 | G10: 0.00 | H10: =IF(E10 = CHAR(37), F10*G10/100,F10*G10) -> 0.00
A12: 201 | B12: A1.2 | C12: 8.3.2 | D12: Establish Facilities on the Site :
A14: 202 | C14: 8.3.2.1 | D14: a) Facilities for Engineer (SANS 1200 AB)
A16: 203 | C16: PSAB 3.2 | D16: i) Offices: 3 furnished rooms with air-conditioning, wi-fi connection and 3 carports | E16: Sum | F16: 1 | G16: 0.00 | H16: =IF(E16 = CHAR(37), F16*G16/100,F16*G16) -> 0.00
A18: 205 | C18: PSAB 4.1 | D18: ii) Cell phones allowances | E18: Sum | F18: 1 | G18: 0.00 | H18: =IF(E18 = CHAR(37), F18*G18/100,F18*G18) -> 0.00
A20: 2189 | C20: PSAB 3.1 | D20: iii) Contract Sign Boards (supply and install) | E20: No. | F20: 1 | G20: 0.00 | H20: =IF(E20 = CHAR(37), F20*G20/100,F20*G20) -> 0.00
A22: 206 | B22: A1.3 | D22: b) Facilities for Contractor | E22: Sum | F22: 1 | G22: 0.00 | H22: =IF(E22 = CHAR(37), F22*G22/100,F22*G22) -> 0.00
A24: 220 | B24: A1.4 | C24: 8.3.3 | D24: Other fixed-charge obligations | E24: Sum | F24: 1 | G24: 0.00 | H24: =IF(E24 = CHAR(37), F24*G24/100,F24*G24) -> 0.00
A26: 2190 | B26: A1.5 | D26: Dealing with water on the works | E26: Sum | F26: 1 | G26: 0.00 | H26: =IF(E26 = CHAR(37), F26*G26/100,F26*G26) -> 0.00
A28: 221 | B28: A1.6 | C28: 8.3.4 | D28: Remove Engineer's and Contractor's Site establishment on completion | E28: Sum | F28: 1 | G28: 0.00 | H28: =IF(E28 = CHAR(37), F28*G28/100,F28*G28) -> 0.00
A30: 2191 | D30: Environmental management plan obligations
A32: 2192 | B32: A1.7 | C32: PS.9 | D32: Contractors initial obligations in respect the Environmental Management Plan contained with the contract document | E32: Sum | F32: 1 | G32: 0.00 | H32: =IF(E32 = CHAR(37), F32*G32/100,F32*G32) -> 0.00
A34: 2822 | B34: A1.8 | C34: 8.9 PSA 8.9 PSA 5.3 | D34: As Built Drawings | E34: Sum | F34: 1 | G34: 0.00 | H34: =IF(E34 = CHAR(37), F34*G34/100,F34*G34) -> 0.00
A36: 3414 | B36: A1.9 | C36: EM SES - Portion AH PSA 8.10 | D36: Occupational Health and Safety Act and Construction Obligations
A38: 3415 | D38: (a) Contractor's initial obligations in respect of the Occupational Health and Safety Act and Construction Regulations | E38: Sum | F38: 1 | G38: 0.00 | H38: =IF(E38 = CHAR(37), F38*G38/100,F38*G38) -> 0.00
A40: 3416 | D40: (b) Submission of the Health & Safety File to the Employer complete, and to the satisfaction of the Employer (on completion of the works) | E40: Sum | F40: 1 | G40: 0.00 | H40: =IF(E40 = CHAR(37), F40*G40/100,F40*G40) -> 0.00
B55: Total Carried Forward To Summary | H55: =SUM(H6:H54) -> 0.00
B56: WESTERN WASTE MANAGEMENT FACILITY
B57: Contract A - Roads, Platforms, Building and Services
B58: A: PRELIMINARY AND GENERAL
H59: 2: TIME RELATED
B60: ITEM NO | C60: PAYMENT | D60: DESCRIPTION | E60: UNIT | F60: QTY | G60: RATE | H60: AMOUNT R
A61: 3222 | C61: SANS 1200 A | D61: SECTION 2: TIME-RELATED ITEMS
A63: 3232 | B63: A2 | C63: 8.4 | D63: TIME-RELATED ITEMS
A65: 3233 | B65: A2.1 | C65: 8.4.1 | D65: Contractual Requirements | E65: Sum | F65: 1 | G65: 0.00 | H65: =IF(E65 = CHAR(37), F65*G65/100,F65*G65) -> 0.00
A67: 3234 | B67: A2.2 | C67: 8.4.2 | D67: Operate and maintain facilities on the Site:
A69: 3235 | C69: 8.4.2.1 | D69: a) Facilities for Engineer for duration of construction (SANS 1200 AB)
A71: 3266 | D71: i) Offices: 3 furnished rooms with air-conditioning, wi-fi connection and 3 carports | E71: Sum | F71: 1 | G71: 0.00 | H71: =IF(E71 = CHAR(37), F71*G71/100,F71*G71) -> 0.00
A73: 3267 | C73: PSAB 4.1 | D73: ii) Cell phones allowances | E73: Sum | F73: 1 | G73: 0.00 | H73: =IF(E73 = CHAR(37), F73*G73/100,F73*G73) -> 0.00
A75: 3268 | D75: iv) Survey equipment and 2 survey assistants | E75: Sum | F75: 1 | G75: 0.00 | H75: =IF(E75 = CHAR(37), F75*G75/100,F75*G75) -> 0.00
A77: 3236 | C77: 8.4.2.2 | D77: b) Facilities for Contractor for duration of construction, except where otherwise stated | E77: Sum | F77: 1 | G77: 0.00 | H77: =IF(E77 = CHAR(37), F77*G77/100,F77*G77) -> 0.00
A79: 3237 | B79: A2.3 | C79: 8.4.3 | D79: Supervision | E79: Sum | F79: 1 | G79: 0.00 | H79: =IF(E79 = CHAR(37), F79*G79/100,F79*G79) -> 0.00
A81: 3238 | B81: A2.4 | C81: 8.4.4 | D81: Company and head office overhead costs | E81: Sum | F81: 1 | G81: 0.00 | H81: =IF(E81 = CHAR(37), F81*G81/100,F81*G81) -> 0.00
A83: 3239 | B83: A2.5 | C83: 8.4.5 | D83: Other time-related obligations | E83: Sum | F83: 1 | G83: 0.00 | H83: =IF(E83 = CHAR(37), F83*G83/100,F83*G83) -> 0.00
A85: 3269 | D85: Environmental management plan obligations
A87: 3270 | B87: A2.6 | C87: PS.9 | D87: Contractors time related items and cost in maintaining all obligations in respect of the Environmental Management Plan contained with the contract document | E87: Sum | F87: 1 | G87: 0.00 | H87: =IF(E87 = CHAR(37), F87*G87/100,F87*G87) -> 0.00
A89: 3281 | B89: A2.7 | C89: PSA 8.13 PS 11 | D89: Provision of Security of Works, Personnel, Plant and Equipment | E89: Sum | F89: 1 | G89: 0.00 | H89: =IF(E89 = CHAR(37), F89*G89/100,F89*G89) -> 0.00
A91: 3417 | B91: A2.8 | C91: EM SES - Portion AH PSA 8.10 | D91: Occupational Health and Safety Act and Construction Obligations
A93: 3418 | D93: (c) Time-related obligations for the updating and amending the risk assessments, the safe work procedures, the project H&S file and the H&S plan, and for full compliance with all H&S matters during construction of the works under the contract. | E93: month | F93: 20 | G93: 0.00 | H93: =IF(E93 = CHAR(37), F93*G93/100,F93*G93) -> 0.00
B108: Total Carried Forward To Summary | H108: =SUM(H61:H107) -> 0.00
B109: WESTERN WASTE MANAGEMENT FACILITY
B110: Contract A - Roads, Platforms, Building and Services
B111: A: PRELIMINARY AND GENERAL
H112: 3: PROVISIONAL SUMS
B113: ITEM NO | C113: PAYMENT | D113: DESCRIPTION | E113: UNIT | F113: QTY | G113: RATE | H113: AMOUNT R
A114: 3286 | C114: SANS 1200 A | D114: SECTION 3: SUMS STATED PROVISIONALLY BY ENGINEER
A116: 3304 | B116: A3 | C116: 8.5 | D116: SUMS STATED PROVISIONALLY BY ENGINEER
A118: 3305 | B118: A3.1 | D118: For work to be done by Contractor and valued in terms of Clause 6 of the General Conditions of Contract
A120: 3306 | D120: a) Buildings
A122: 3318 | D122: i) Offices | E122: PSum | F122: 1 | G122: 3640 000.00 | H122: 3640 000.00
A124: 3319 | D124: ii) Staff Building and Canteen | E124: PSum | F124: 1 | G124: 1377 000.00 | H124: 1377 000.00
A126: 3433 | D126: iii) Gate House | E126: PSum | F126: 1 | G126: 200 000.00 | H126: 200 000.00
A128: 3435 | D128: iv) Weighbridge Kiosk | E128: PSum | F128: 1 | G128: 150 000.00 | H128: 150 000.00
A130: 3308 | B130: A3.2 | D130: Allowance for Environmental Officer
A132: 3309 | D132: a) Monthly audits by an approved Environmental Officer | E132: PSum | F132: 1 | G132: 200 000.00 | H132: 200 000.00
A134: 3310 | D134: b) Overheads, charges and profit on item (a) above | E134: % | F134: =H132 -> 200 000 | G134: 0.00 | H134: =IF(E134 = CHAR(37), F134*G134/100,F134*G134) -> 0.00
A136: 3335 | B136: A3.3 | C136: PSA 8.10 | D136: Health and Safety Audit on Site
A138: 3340 | D138: a) Monthly by an approved Service provider | E138: PSum | F138: 1 | G138: 200 000.00 | H138: 200 000.00
A140: 3336 | D140: b) Overheads, charges and profit on item (a) above | E140: % | F140: =H138 -> 200 000 | G140: 0.00 | H140: =IF(E140 = CHAR(37), F140*G140/100,F140*G140) -> 0.00
A142: 3337 | B142: A3.4 | C142: PSA 7.5 | D142: Check testing instructed by the Engineer
A144: 3338 | D144: a) From a commercial laboratory (Prov) | E144: PSum | F144: 1 | G144: 50 000.00 | H144: 50 000.00
A146: 3339 | D146: b) Overheads, charges and profit on item (a) above | E146: % | F146: =H144 -> 50 000 | G146: 0.00 | H146: =IF(E146 = CHAR(37), F146*G146/100,F146*G146) -> 0.00
A148: 3341 | B148: A3.5 | C148: PSA 8.5 | D148: Allowance for a Community Liaison Officer
A150: 3342 | D150: a) For the duration of the contract | E150: PSum | F150: 1 | G150: 250 000.00 | H150: 250 000.00
A152: 3343 | D152: b) Overheads, charges and profit on item (a) above | E152: % | F152: =H150 -> 250 000 | G152: 0.00 | H152: =IF(E152 = CHAR(37), F152*G152/100,F152*G152) -> 0.00
A154: 3346 | B154: A3.6 | C154: PSA 8.5 | D154: Allowance for a Social Facilitator
A156: 3347 | D156: a) For the duration of the contract | E156: PSum | F156: 1 | G156: 250 000.00 | H156: 250 000.00
A158: 3348 | D158: b) Overheads, charges and profit on item (a) above | E158: % | F158: =H156 -> 250 000 | G158: 0.00 | H158: =IF(E158 = CHAR(37), F158*G158/100,F158*G158) -> 0.00
B164: Total Carried Forward To Summary | H164: =SUM(H114:H163) -> 6317 000.00
B165: WESTERN WASTE MANAGEMENT FACILITY
B166: Contract A - Roads, Platforms, Building and Services
B167: A: PRELIMINARY AND GENERAL
H168: 4: TEMPORARY WORKS
B169: ITEM NO | C169: PAYMENT | D169: DESCRIPTION | E169: UNIT | F169: QTY | G169: RATE | H169: AMOUNT R
A170: 3350 | C170: SANS 1200 A | D170: SECTION 4: TEMPORARY WORKS
A172: 3375 | B172: A4 | C172: 8.8 | D172: TEMPORARY WORKS
A174: 3376 | B174: A4.1 | C174: 8.8.2 PSA 8.8.2 PSA 5.2 | D174: Deal with traffic and maintain road (or accommodation of traffic) | E174: Sum | F174: 1 | G174: 0.00 | H174: =IF(E174 = CHAR(37), F174*G174/100,F174*G174) -> 0.00
A176: 3377 | B176: A4.2 | C176: 8.8.3 | D176: Protect Transnet Tower enclosure until construction in vicinity complete | E176: Sum | F176: 1 | G176: 0.00 | H176: =IF(E176 = CHAR(37), F176*G176/100,F176*G176) -> 0.00
A178: 3413 | B178: A4.3 | C178: PS 9.1 | D178: Temporary protection of sensitive grasslands adjacent to platforms and roads. (Must be impassable to all vehicles) | E178: m | F178: 1 000 | G178: 0.00 | H178: =IF(E178 = CHAR(37), F178*G178/100,F178*G178) -> 0.00
A180: 3378 | B180: A4.4 | C180: 8.8.4 | D180: Existing services
A182: 3379 | D182: a) Excavate by hand in soft material to expose services | E182: m³ | F182: 50 | G182: 0.00 | H182: =IF(E182 = CHAR(37), F182*G182/100,F182*G182) -> 0.00
A184: 3380 | D184: b) Temporary protection of services | E184: Sum | F184: 1 | G184: 0.00 | H184: =IF(E184 = CHAR(37), F184*G184/100,F184*G184) -> 0.00
B225: Total Carried Forward To Summary | H225: =SUM(H170:H224) -> 0.00
B226: WESTERN WASTE MANAGEMENT FACILITY
B227: Contract A - Roads, Platforms, Building and Services
B228: A: PRELIMINARY AND GENERAL
H229: 5: DAYWORKS
B230: ITEM NO | C230: PAYMENT | D230: DESCRIPTION | E230: UNIT | F230: QTY | G230: RATE | H230: AMOUNT R
A231: 2208 | C231: SABS 1200 A | D231: SECTION 2: DAYWORKS
A233: 2209 | B233: A5 | C233: 8.7 PSA 8.7 | D233: Daywork
A235: 2210 | B235: A5.1 | D235: Labour
A237: 2211 | D237: a) Labourer | E237: hours | F237: 500 | G237: 0.00 | H237: =IF(E237 = CHAR(37), F237*G237/100,F237*G237) -> 0.00
A239: 2212 | D239: b) Gang Leader | E239: hours | F239: 100 | G239: 0.00 | H239: =IF(E239 = CHAR(37), F239*G239/100,F239*G239) -> 0.00
A241: 2213 | D241: c) Skilled worker (tradesman) | E241: hours | F241: 50 | G241: 0.00 | H241: =IF(E241 = CHAR(37), F241*G241/100,F241*G241) -> 0.00
A243: 2828 | D243: d) Surveyor | E243: hours | F243: 20 | G243: 0.00 | H243: =IF(E243 = CHAR(37), F243*G243/100,F243*G243) -> 0.00
A245: 2216 | B245: A5.2 | D245: Plant
A247: 2217 | D247: a) 6m³ tip truck | E247: hours | F247: 20 | G247: 0.00 | H247: =IF(E247 = CHAR(37), F247*G247/100,F247*G247) -> 0.00
A249: 2218 | D249: b) 10m³ tip truck | E249: hours | F249: 20 | G249: 0.00 | H249: =IF(E249 = CHAR(37), F249*G249/100,F249*G249) -> 0.00
A251: 2219 | D251: c) 6000 litre watercart | E251: hours | F251: 20 | G251: 0.00 | H251: =IF(E251 = CHAR(37), F251*G251/100,F251*G251) -> 0.00
A253: 2220 | D253: d) 10 000 litre watercart | E253: hours | F253: 20 | G253: 0.00 | H253: =IF(E253 = CHAR(37), F253*G253/100,F253*G253) -> 0.00
A255: 2221 | D255: e) TLB case 480D or similar, 4,6t 39 kW | E255: hours | F255: 20 | G255: 0.00 | H255: =IF(E255 = CHAR(37), F255*G255/100,F255*G255) -> 0.00
A257: 2222 | D257: f) Pedestrian roller Bomag 60 or similar | E257: hours | F257: 20 | G257: 0.00 | H257: =IF(E257 = CHAR(37), F257*G257/100,F257*G257) -> 0.00
A259: 2223 | D259: g) Pedestrian roller Bomag 90 or similar | E259: hours | F259: 20 | G259: 0.00 | H259: =IF(E259 = CHAR(37), F259*G259/100,F259*G259) -> 0.00
A261: 2224 | D261: h) Compressor 250 c.f.m with 2 paving breakers | E261: hours | F261: 20 | G261: 0.00 | H261: =IF(E261 = CHAR(37), F261*G261/100,F261*G261) -> 0.00
A263: 2225 | D263: i) Hitachi UH 121 excavator or similar 26t 121kW | E263: hours | F263: 20 | G263: 0.00 | H263: =IF(E263 = CHAR(37), F263*G263/100,F263*G263) -> 0.00
A265: 2226 | D265: j) 7 tonne flatbed crane truck | E265: hours | F265: 20 | G265: 0.00 | H265: =IF(E265 = CHAR(37), F265*G265/100,F265*G265) -> 0.00
A267: 2227 | D267: k) Bulldozer Cat D6D or similar 14200kg 104kW | E267: hours | F267: 20 | G267: 0.00 | H267: =IF(E267 = CHAR(37), F267*G267/100,F267*G267) -> 0.00
A269: 2228 | D269: l) Bulldozer Komatsu D31 or similar 6590kg 49kW | E269: hours | F269: 20 | G269: 0.00 | H269: =IF(E269 = CHAR(37), F269*G269/100,F269*G269) -> 0.00
A271: 2229 | D271: m) Grader Cat 140g or similar 16500kg 112kW | E271: hours | F271: 20 | G271: 0.00 | H271: =IF(E271 = CHAR(37), F271*G271/100,F271*G271) -> 0.00
A273: 2230 | D273: n) Front end loader cat 930 or similar 9620kg 75kW | E273: hours | F273: 20 | G273: 0.00 | H273: =IF(E273 = CHAR(37), F273*G273/100,F273*G273) -> 0.00
A275: 2231 | D275: o) Roller: Bomag 518 or similar
A277: 2829 | D277: 1) Smooth drum | E277: hours | F277: 20 | G277: 0.00 | H277: =IF(E277 = CHAR(37), F277*G277/100,F277*G277) -> 0.00
A279: 2830 | D279: 2) Padfoot | E279: hours | F279: 20 | G279: 0.00 | H279: =IF(E279 = CHAR(37), F279*G279/100,F279*G279) -> 0.00
A281: 2232 | D281: p) Hitachi WH051D wheel excavator or similar 10,566kW | E281: hours | F281: 20 | G281: 0.00 | H281: =IF(E281 = CHAR(37), F281*G281/100,F281*G281) -> 0.00
A283: 3030 | D283: q) Grid roller and tractor | E283: hours | F283: 20 | G283: 0.00 | H283: =IF(E283 = CHAR(37), F283*G283/100,F283*G283) -> 0.00
B289: Total Carried Forward To Summary | H289: =SUM(H231:H288) -> 0.00
B290: WESTERN WASTE MANAGEMENT FACILITY
B291: Contract A - Roads, Platforms, Building and Services
B292: A: PRELIMINARY AND GENERAL
D293: SUMMARY OF SECTIONS
C294: SECTION | D294: DESCRIPTION | H294: AMOUNT R
C295: A1 | D295: FIXED CHARGES | H295: =H55 -> 0.00
C297: A2 | D297: TIME RELATED | H297: =H108 -> 0.00
C299: A3 | D299: PROVISIONAL SUMS | H299: =H164 -> 6317 000.00
C301: A4 | D301: TEMPORARY WORKS | H301: =H225 -> 0.00
C303: A5 | D303: DAYWORKS | H303: =H289 -> 0.00
C305: Total Carried Forward To Summary Of Schedules | H305: =SUM(H295:H304) -> 6317 000.00

Sheet Schedule 2
A1: Rate=G | B1: WESTERN WASTE MANAGEMENT FACILITY
B2: Contract A - Roads, Platforms, Building and Services
B3: B: ROADS AND EARTHWORKS
H4: 1: SITE CLEARANCE
B5: ITEM NO | C5: PAYMENT | D5: DESCRIPTION | E5: UNIT | F5: QTY | G5: RATE | H5: AMOUNT R
A6: 304 | C6: SANS 1200 C | D6: SECTION 1 : SITE CLEARANCE
A8: 305 | B8: B1.1 | D8: CLEAR SITE
A10: 306 | B10: B1.1.1 | C10: 8.2.1 PSC 8.2.1 | D10: Clear and grub Site
A12: 2831 | D12: i) MR461 | E12: ha | F12: 2.6 | G12: 0.00 | H12: =IF(E12 = CHAR(37), F12*G12/100,F12*G12) -> 0.00
A14: 2832 | D14: ii) Road 0 | E14: ha | F14: 3.7 | G14: 0.00 | H14: =IF(E14 = CHAR(37), F14*G14/100,F14*G14) -> 0.00
A16: 2833 | D16: iii) Road 1 | E16: ha | F16: 0.2 | G16: 0.00 | H16: =IF(E16 = CHAR(37), F16*G16/100,F16*G16) -> 0.00
A18: 2834 | D18: iv) Transnet Road | E18: ha | F18: 0.9 | G18: 0.00 | H18: =IF(E18 = CHAR(37), F18*G18/100,F18*G18) -> 0.00
A20: 2835 | D20: v) Platform 1 | E20: ha | F20: 2.0 | G20: 0.00 | H20: =IF(E20 = CHAR(37), F20*G20/100,F20*G20) -> 0.00
A22: 2836 | D22: vi) Platform 2 | E22: ha | F22: 2.0 | G22: 0.00 | H22: =IF(E22 = CHAR(37), F22*G22/100,F22*G22) -> 0.00
A24: 3024 | D24: viii) Track Road | E24: ha | F24: 0.4 | G24: 0.00 | H24: =IF(E24 = CHAR(37), F24*G24/100,F24*G24) -> 0.00
A26: 3022 | D26: ix) Stormwater Detention Dam 2 | E26: ha | F26: 0.4 | G26: 0.00 | H26: =IF(E26 = CHAR(37), F26*G26/100,F26*G26) -> 0.00
A28: 3424 | D28: xi) Western Cut-off Drain | E28: ha | F28: 0.5 | G28: 0.00 | H28: =IF(E28 = CHAR(37), F28*G28/100,F28*G28) -> 0.00
A30: 307 | B30: B1.1.2 | C30: 8.2.3 | D30: Remove and grub all trees and tree stumps regardless of girth
A32: 2837 | D32: i) MR461 | E32: ha | F32: 0.2 | G32: 0.00 | H32: =IF(E32 = CHAR(37), F32*G32/100,F32*G32) -> 0.00
A34: 2838 | D34: ii) Road 0 | E34: ha | F34: 0.8 | G34: 0.00 | H34: =IF(E34 = CHAR(37), F34*G34/100,F34*G34) -> 0.00
A36: 2839 | D36: iii) Road 1 | E36: ha | F36: 0.1 | G36: 0.00 | H36: =IF(E36 = CHAR(37), F36*G36/100,F36*G36) -> 0.00
A38: 3026 | D38: viii) Track Road | E38: ha | F38: 0.5 | G38: 0.00 | H38: =IF(E38 = CHAR(37), F38*G38/100,F38*G38) -> 0.00
A40: 3425 | D40: xi) Western Cut-off Drain | E40: ha | F40: 0.4 | G40: 0.00 | H40: =IF(E40 = CHAR(37), F40*G40/100,F40*G40) -> 0.00
A42: 314 | B42: B1.1.3 | C42: 8.2.7 | D42: Remove pipes / cables
A44: 2841 | D44: i) Existing MR461 - stormwater pipes | E44: m | F44: 100 | G44: 0.00 | H44: =IF(E44 = CHAR(37), F44*G44/100,F44*G44) -> 0.00
A46: 3029 | D46: i) Existing MR461 - electrical cable | E46: m | F46: 900 | G46: 0.00 | H46: =IF(E46 = CHAR(37), F46*G46/100,F46*G46) -> 0.00
A48: 317 | B48: B1.1.4 | C48: 8.2.8 | D48: Demolish and remove existing stormwater manholes and headwalls
A50: 2846 | D50: i) MR461 | E50: No. | F50: 10 | G50: 0.00 | H50: =IF(E50 = CHAR(37), F50*G50/100,F50*G50) -> 0.00
A52: 319 | B52: B1.1.5 | C52: 8.2.9 | D52: Cart materials and debris to unspecified spoil sites off site (provisional)
A54: 2847 | D54: i) MR461 | E54: t.km | F54: 1 000 | G54: 0.00 | H54: =IF(E54 = CHAR(37), F54*G54/100,F54*G54) -> 0.00
A56: 2855 | B56: B1.1.6 | D56: Remove existing road surfacing and layers to spoil or stockpile
A58: 2854 | D58: i) Existing MR461 | E58: m³ | F58: 3 000 | G58: 0.00 | H58: =IF(E58 = CHAR(37), F58*G58/100,F58*G58) -> 0.00
B62: Total Carried Forward | H62: =SUM(H6:H61) -> 0.00
B63: WESTERN WASTE MANAGEMENT FACILITY
B64: Contract A - Roads, Platforms, Building and Services
B65: B: ROADS AND EARTHWORKS
H66: 1: SITE CLEARANCE
B67: ITEM NO | C67: PAYMENT | D67: DESCRIPTION | E67: UNIT | F67: QTY | G67: RATE | H67: AMOUNT R
B68: Brought Forward | H68: =H62 -> 0.00
A69: 2233 | B69: B1.2 | C69: SANS 1200 D 8.3.2 | D69: EXCAVATION
A71: 2234 | B71: B1.2.1 | C71: 8.3.1.2 | D71: Remove topsoil to nominal depth 150mm, stockpile, and maintain
A73: 2848 | D73: i) MR461 | E73: m² | F73: 26 000 | G73: 0.00 | H73: =IF(E73 = CHAR(37), F73*G73/100,F73*G73) -> 0.00
A75: 2849 | D75: ii) Road 0 | E75: m² | F75: 37 000 | G75: 0.00 | H75: =IF(E75 = CHAR(37), F75*G75/100,F75*G75) -> 0.00
A77: 2850 | D77: iii) Road 1 | E77: m² | F77: 2 000 | G77: 0.00 | H77: =IF(E77 = CHAR(37), F77*G77/100,F77*G77) -> 0.00
A79: 2851 | D79: iv) Transnet Road | E79: m² | F79: 9 000 | G79: 0.00 | H79: =IF(E79 = CHAR(37), F79*G79/100,F79*G79) -> 0.00
A81: 2852 | D81: v) Platform 1 | E81: m² | F81: 20 000 | G81: 0.00 | H81: =IF(E81 = CHAR(37), F81*G81/100,F81*G81) -> 0.00
A83: 2853 | D83: vi) Platform 2 | E83: m² | F83: 19 500 | G83: 0.00 | H83: =IF(E83 = CHAR(37), F83*G83/100,F83*G83) -> 0.00
A85: 3033 | D85: viii) Track Road | E85: m² | F85: 4 000 | G85: 0.00 | H85: =IF(E85 = CHAR(37), F85*G85/100,F85*G85) -> 0.00
A87: 3034 | D87: ix) Stormwater Detention Dam 2 | E87: m² | F87: 4 000 | G87: 0.00 | H87: =IF(E87 = CHAR(37), F87*G87/100,F87*G87) -> 0.00
A89: 3426 | D89: xi) Western Cut-off Drain | E89: m² | F89: 4 000 | G89: 0.00 | H89: =IF(E89 = CHAR(37), F89*G89/100,F89*G89) -> 0.00
B126: Total Carried Forward To Summary | H126: =SUM(H68:H125) -> 0.00
B127: WESTERN WASTE MANAGEMENT FACILITY
B128: Contract A - Roads, Platforms, Building and Services
B129: B: ROADS AND EARTHWORKS
H130: 2: EARTHWORKS (ROADS, SUBGRADE)
B131: ITEM NO | C131: PAYMENT | D131: DESCRIPTION | E131: UNIT | F131: QTY | G131: RATE | H131: AMOUNT R
A132: 555 | C132: SANS 1200 DM | D132: SECTION 2: EARTHWORKS (ROADS, SUBGRADE)
A134: 560 | B134: B2.1 | D134: TREATMENT OF ROAD-BED
A136: 565 | B136: B2.1.1 | C136: 8.3.3(a) | D136: Road-bed preparation and compaction of material
A138: 567 | B138: B2.1.1.1 | D138: Compact to 93 % mod. AASHTO maximum density
A140: 2362 | D140: i) MR461 | E140: m³ | F140: 1 480 | G140: 0.00 | H140: =IF(E140 = CHAR(37), F140*G140/100,F140*G140) -> 0.00
A142: 2363 | D142: ii) Road 0 | E142: m³ | F142: 2 420 | G142: 0.00 | H142: =IF(E142 = CHAR(37), F142*G142/100,F142*G142) -> 0.00
A144: 2364 | D144: iii) Road 1 | E144: m³ | F144: 260 | G144: 0.00 | H144: =IF(E144 = CHAR(37), F144*G144/100,F144*G144) -> 0.00
A146: 2365 | D146: iv) Transnet Road | E146: m³ | F146: 550 | G146: 0.00 | H146: =IF(E146 = CHAR(37), F146*G146/100,F146*G146) -> 0.00
A148: 2366 | D148: v) Platform 1 | E148: m³ | F148: 1 000 | G148: 0.00 | H148: =IF(E148 = CHAR(37), F148*G148/100,F148*G148) -> 0.00
A150: 2367 | D150: vi) Platform 2 | E150: m³ | F150: 1 740 | G150: 0.00 | H150: =IF(E150 = CHAR(37), F150*G150/100,F150*G150) -> 0.00
A152: 3035 | D152: viii) Track Road | E152: m³ | F152: 460 | G152: 0.00 | H152: =IF(E152 = CHAR(37), F152*G152/100,F152*G152) -> 0.00
A154: 3427 | D154: xi) Western Cut-off Drain | E154: m³ | F154: 4 000 | G154: 0.00 | H154: =IF(E154 = CHAR(37), F154*G154/100,F154*G154) -> 0.00
A156: 569 | B156: B2.1.2 | C156: 8.3.3(b) | D156: In-place treatment of road-bed in intermediate or hard material
A158: 570 | B158: B2.1.2.1 | D158: Ripping
A160: 2368 | D160: i) MR461 | E160: m³ | F160: 1 280 | G160: 0.00 | H160: =IF(E160 = CHAR(37), F160*G160/100,F160*G160) -> 0.00
A162: 2369 | D162: ii) Road 0 | E162: m³ | F162: 2 080 | G162: 0.00 | H162: =IF(E162 = CHAR(37), F162*G162/100,F162*G162) -> 0.00
A164: 2371 | D164: iv) Transnet Road | E164: m³ | F164: 260 | G164: 0.00 | H164: =IF(E164 = CHAR(37), F164*G164/100,F164*G164) -> 0.00
A166: 2372 | D166: v) Platform 1 | E166: m³ | F166: 860 | G166: 0.00 | H166: =IF(E166 = CHAR(37), F166*G166/100,F166*G166) -> 0.00
A168: 3040 | D168: viii) Track Road | E168: m³ | F168: 100 | G168: 0.00 | H168: =IF(E168 = CHAR(37), F168*G168/100,F168*G168) -> 0.00
A170: 3428 | D170: xi) Western Cut-off Drain | E170: m³ | F170: 2 000 | G170: 0.00 | H170: =IF(E170 = CHAR(37), F170*G170/100,F170*G170) -> 0.00
A172: 571 | B172: B2.1.2.2 | D172: Blasting
A174: 2374 | D174: i) MR461 | E174: m³ | F174: 3 160 | G174: 0.00 | H174: =IF(E174 = CHAR(37), F174*G174/100,F174*G174) -> 0.00
A176: 2375 | D176: ii) Road 0 | E176: m³ | F176: 5 780 | G176: 0.00 | H176: =IF(E176 = CHAR(37), F176*G176/100,F176*G176) -> 0.00
A178: 2377 | D178: iv) Transnet Road | E178: m³ | F178: 620 | G178: 0.00 | H178: =IF(E178 = CHAR(37), F178*G178/100,F178*G178) -> 0.00
A180: 2378 | D180: v) Platform 1 | E180: m³ | F180: 700 | G180: 0.00 | H180: =IF(E180 = CHAR(37), F180*G180/100,F180*G180) -> 0.00
A182: 3044 | D182: viii) Track Road | E182: m³ | F182: 450 | G182: 0.00 | H182: =IF(E182 = CHAR(37), F182*G182/100,F182*G182) -> 0.00
A184: 2856 | B184: B2.1.2.3 | C184: PSDM 5.2.2.2 | D184: Shape and compact top of blasted rock roadbed with 5 passes of a 1 ton smooth drum vibratory roller
A186: 2858 | D186: i) MR461 | E186: m² | F186: 4 220 | G186: 0.00 | H186: =IF(E186 = CHAR(37), F186*G186/100,F186*G186) -> 0.00
A188: 2859 | D188: ii) Road 0 | E188: m² | F188: 6 900 | G188: 0.00 | H188: =IF(E188 = CHAR(37), F188*G188/100,F188*G188) -> 0.00
B189: Total Carried Forward | H189: =SUM(H132:H188) -> 0.00
B190: WESTERN WASTE MANAGEMENT FACILITY
B191: Contract A - Roads, Platforms, Building and Services
B192: B: ROADS AND EARTHWORKS
H193: 2: EARTHWORKS (ROADS, SUBGRADE)
B194: ITEM NO | C194: PAYMENT | D194: DESCRIPTION | E194: UNIT | F194: QTY | G194: RATE | H194: AMOUNT R
B195: Brought Forward | H195: =H189 -> 0.00
A196: 2861 | D196: iv) Transnet Road | E196: m² | F196: 820 | G196: 0.00 | H196: =IF(E196 = CHAR(37), F196*G196/100,F196*G196) -> 0.00
A198: 2862 | D198: v) Platform 1 | E198: m² | F198: 2 840 | G198: 0.00 | H198: =IF(E198 = CHAR(37), F198*G198/100,F198*G198) -> 0.00
A200: 3048 | D200: viii) Track Road | E200: m³ | F200: 660 | G200: 0.00 | H200: =IF(E200 = CHAR(37), F200*G200/100,F200*G200) -> 0.00
A202: 2857 | B202: B2.1.3 | C202: PSDM 5.2.9 | D202: Benching on slopes steeper than 1v:5h
A204: 2865 | D204: ii) Road 0 | E204: m³ | F204: 2 000 | G204: 0.00 | H204: =IF(E204 = CHAR(37), F204*G204/100,F204*G204) -> 0.00
A206: 2866 | D206: iii) Road 1 | E206: m³ | F206: 100 | G206: 0.00 | H206: =IF(E206 = CHAR(37), F206*G206/100,F206*G206) -> 0.00
A208: 2869 | D208: vi) Platform 2 | E208: m³ | F208: 2 000 | G208: 0.00 | H208: =IF(E208 = CHAR(37), F208*G208/100,F208*G208) -> 0.00
A210: 3052 | D210: viii) Track Road | E210: m³ | F210: 500 | G210: 0.00 | H210: =IF(E210 = CHAR(37), F210*G210/100,F210*G210) -> 0.00
A212: 3431 | D212: xi) Western Cut-off Drain | E212: m³ | F212: 1 500 | G212: 0.00 | H212: =IF(E212 = CHAR(37), F212*G212/100,F212*G212) -> 0.00
A214: 572 | B214: B2.2 | D214: EARTHWORKS
A216: 573 | B216: B2.2.1 | C216: 8.3.4 | D216: Cut to fill
A218: 574 | B218: B2.2.1.1 | D218: Compact to 93 % mod. AASHTO maximum density in 150mm layers G10 (CBR>3)
A220: 2380 | D220: i) MR461 | E220: m³ | F220: 3 500 | G220: 0.00 | H220: =IF(E220 = CHAR(37), F220*G220/100,F220*G220) -> 0.00
A222: 2381 | D222: ii) Road 0 | E222: m³ | F222: 13 000 | G222: 0.00 | H222: =IF(E222 = CHAR(37), F222*G222/100,F222*G222) -> 0.00
A224: 2382 | D224: iii) Road 1 (from Road MR461) | E224: m³ | F224: 5 000 | G224: 0.00 | H224: =IF(E224 = CHAR(37), F224*G224/100,F224*G224) -> 0.00
A226: 2383 | D226: iv) Transnet Road | E226: m³ | F226: 1 500 | G226: 0.00 | H226: =IF(E226 = CHAR(37), F226*G226/100,F226*G226) -> 0.00
A228: 2384 | D228: v) Platform 1 | E228: m³ | F228: 2 500 | G228: 0.00 | H228: =IF(E228 = CHAR(37), F228*G228/100,F228*G228) -> 0.00
A230: 2385 | D230: vi) Platform 2 | E230: m³ | F230: 35 000 | G230: 0.00 | H230: =IF(E230 = CHAR(37), F230*G230/100,F230*G230) -> 0.00
A232: 3056 | D232: viii) Track Road | E232: m³ | F232: 6 750 | G232: 0.00 | H232: =IF(E232 = CHAR(37), F232*G232/100,F232*G232) -> 0.00
A234: 3057 | D234: ix) Stormwater Detention Dam 2 | E234: m³ | F234: 500 | G234: 0.00 | H234: =IF(E234 = CHAR(37), F234*G234/100,F234*G234) -> 0.00
A236: 3429 | D236: xi) Western Cut-off Drain (from Road 0 or Platform 1) | E236: m³ | F236: 8 260 | G236: 0.00 | H236: =IF(E236 = CHAR(37), F236*G236/100,F236*G236) -> 0.00
A238: 576 | B238: B2.2.1.2 | C238: PSDM 5.2.4.2 | D238: Rockfill, process, and compact
A240: 2871 | D240: ii) Road 0 | E240: m³ | F240: 5 000 | G240: 0.00 | H240: =IF(E240 = CHAR(37), F240*G240/100,F240*G240) -> 0.00
A242: 2875 | D242: vi) Platform 2 | E242: m³ | F242: 5 000 | G242: 0.00 | H242: =IF(E242 = CHAR(37), F242*G242/100,F242*G242) -> 0.00
A244: 3430 | D244: xi) Western Cut-off Drain (from Road 0 or Platform 1) | E244: m³ | F244: 6 000 | G244: 0.00 | H244: =IF(E244 = CHAR(37), F244*G244/100,F244*G244) -> 0.00
B252: Total Carried Forward | H252: =SUM(H195:H251) -> 0.00
B253: WESTERN WASTE MANAGEMENT FACILITY
B254: Contract A - Roads, Platforms, Building and Services
B255: B: ROADS AND EARTHWORKS
H256: 2: EARTHWORKS (ROADS, SUBGRADE)
B257: ITEM NO | C257: PAYMENT | D257: DESCRIPTION | E257: UNIT | F257: QTY | G257: RATE | H257: AMOUNT R
B258: Brought Forward | H258: =H252 -> 0.00
A259: 583 | B259: B2.2.2 | C259: 8.3.5 | D259: Selected layer
A261: 2396 | B261: B2.2.2.1 | C261: PSDM 3.2.1 | D261: a) From Site or Stockpile
A263: 2235 | B263: B2.2.2.1.1 | D263: Compacted to 93% MoD AASHTO 150mm thick layer G9 (CBR>7)
A265: 2386 | D265: i) MR461 | E265: m³ | F265: 1 900 | G265: 0.00 | H265: =IF(E265 = CHAR(37), F265*G265/100,F265*G265) -> 0.00
A267: 2387 | D267: ii) Road 0 | E267: m³ | F267: 2 780 | G267: 0.00 | H267: =IF(E267 = CHAR(37), F267*G267/100,F267*G267) -> 0.00
A269: 2388 | D269: iii) Road 1 (from Road MR461) | E269: m³ | F269: 140 | G269: 0.00 | H269: =IF(E269 = CHAR(37), F269*G269/100,F269*G269) -> 0.00
A271: 2389 | D271: iv) Transnet Road | E271: m³ | F271: 280 | G271: 0.00 | H271: =IF(E271 = CHAR(37), F271*G271/100,F271*G271) -> 0.00
A273: 2390 | D273: v) Platform 1 | E273: m³ | F273: 1 140 | G273: 0.00 | H273: =IF(E273 = CHAR(37), F273*G273/100,F273*G273) -> 0.00
A275: 3063 | D275: viii) Track Road | E275: m³ | F275: 280 | G275: 0.00 | H275: =IF(E275 = CHAR(37), F275*G275/100,F275*G275) -> 0.00
A277: 2397 | B277: B2.2.2.2 | C277: PSDM 3.2.1 | D277: b) Imported from commercial source
A279: 2236 | B279: B2.2.2.2.1 | D279: Compacted to 95% MoD AASHTO 150mm thick layer G7 (CBR>15)
A281: 2392 | D281: i) MR461 | E281: m³ | F281: 1 900 | G281: 0.00 | H281: =IF(E281 = CHAR(37), F281*G281/100,F281*G281) -> 0.00
A283: 2393 | D283: ii) Road 0 | E283: m³ | F283: 2 780 | G283: 0.00 | H283: =IF(E283 = CHAR(37), F283*G283/100,F283*G283) -> 0.00
A285: 2394 | D285: iii) Road 1 | E285: m³ | F285: 140 | G285: 0.00 | H285: =IF(E285 = CHAR(37), F285*G285/100,F285*G285) -> 0.00
A287: 2395 | D287: iv) Transnet Road | E287: m³ | F287: 280 | G287: 0.00 | H287: =IF(E287 = CHAR(37), F287*G287/100,F287*G287) -> 0.00
A289: 2458 | D289: v) Platform 1 | E289: m³ | F289: 1 140 | G289: 0.00 | H289: =IF(E289 = CHAR(37), F289*G289/100,F289*G289) -> 0.00
A291: 3064 | D291: viii) Track Road | E291: m³ | F291: 280 | G291: 0.00 | H291: =IF(E291 = CHAR(37), F291*G291/100,F291*G291) -> 0.00
A293: 2240 | B293: B2.2.2.2.2 | D293: Compacted to 95% MoD AASHTO 150mm thick layer G7 to shoulder infill (CBR>15)
A295: 2398 | D295: i) MR461 | E295: m³ | F295: 180 | G295: 0.00 | H295: =IF(E295 = CHAR(37), F295*G295/100,F295*G295) -> 0.00
A297: 2399 | D297: ii) Road 0 | E297: m³ | F297: 300 | G297: 0.00 | H297: =IF(E297 = CHAR(37), F297*G297/100,F297*G297) -> 0.00
A299: 2400 | D299: iii) Road 1 | E299: m³ | F299: 60 | G299: 0.00 | H299: =IF(E299 = CHAR(37), F299*G299/100,F299*G299) -> 0.00
A301: 2401 | D301: iv) Transnet Road | E301: m³ | F301: 240 | G301: 0.00 | H301: =IF(E301 = CHAR(37), F301*G301/100,F301*G301) -> 0.00
A303: 584 | B303: B2.2.3 | C303: 8.3.6 | D303: Extra-over items B2.2.2.1 for excavating and breaking down material in:
A305: 586 | B305: B2.2.3.1 | C305: PSDM 3.1 PSD 3.1.2 | D305: Hard excavation
A307: 2410 | D307: i) MR461 | E307: m³ | F307: 960 | G307: 0.00 | H307: =IF(E307 = CHAR(37), F307*G307/100,F307*G307) -> 0.00
A309: 2411 | D309: ii) Road 0 | E309: m³ | F309: 1 400 | G309: 0.00 | H309: =IF(E309 = CHAR(37), F309*G309/100,F309*G309) -> 0.00
A311: 2412 | D311: iii) Road 1 | E311: m³ | F311: 80 | G311: 0.00 | H311: =IF(E311 = CHAR(37), F311*G311/100,F311*G311) -> 0.00
A313: 2413 | D313: iv) Transnet Road | E313: m³ | F313: 160 | G313: 0.00 | H313: =IF(E313 = CHAR(37), F313*G313/100,F313*G313) -> 0.00
B314: Total Carried Forward | H314: =SUM(H258:H313) -> 0.00
B315: WESTERN WASTE MANAGEMENT FACILITY
B316: Contract A - Roads, Platforms, Building and Services
B317: B: ROADS AND EARTHWORKS
H318: 2: EARTHWORKS (ROADS, SUBGRADE)
B319: ITEM NO | C319: PAYMENT | D319: DESCRIPTION | E319: UNIT | F319: QTY | G319: RATE | H319: AMOUNT R
B320: Brought Forward | H320: =H314 -> 0.00
A321: 2414 | D321: v) Platform 1 | E321: m³ | F321: 580 | G321: 0.00 | H321: =IF(E321 = CHAR(37), F321*G321/100,F321*G321) -> 0.00
A323: 3067 | D323: viii) Track Road | E323: m³ | F323: 160 | G323: 0.00 | H323: =IF(E323 = CHAR(37), F323*G323/100,F323*G323) -> 0.00
A325: 589 | B325: B2.2.4 | C325: 8.3.7 | D325: Cut to spoil or stockpile from
A327: 590 | B327: B2.2.4.1 | C327: PS 5.2.2.4 | D327: Soft excavation
A329: 2416 | D329: i) MR461 | E329: m³ | F329: 63 700 | G329: 0.00 | H329: =IF(E329 = CHAR(37), F329*G329/100,F329*G329) -> 0.00
A331: 2417 | D331: ii) Road 0 | E331: m³ | F331: 40 000 | G331: 0.00 | H331: =IF(E331 = CHAR(37), F331*G331/100,F331*G331) -> 0.00
A333: 2419 | D333: iv) Transnet Road | E333: m³ | F333: 10 650 | G333: 0.00 | H333: =IF(E333 = CHAR(37), F333*G333/100,F333*G333) -> 0.00
A335: 2420 | D335: v) Platform 1 | E335: m³ | F335: 27 150 | G335: 0.00 | H335: =IF(E335 = CHAR(37), F335*G335/100,F335*G335) -> 0.00
A337: 3071 | D337: viii) Track Road | E337: m³ | F337: 1 000 | G337: 0.00 | H337: =IF(E337 = CHAR(37), F337*G337/100,F337*G337) -> 0.00
A339: 3072 | D339: ix) Stormwater Detention Dam 2 | E339: m³ | F339: 5 900 | G339: 0.00 | H339: =IF(E339 = CHAR(37), F339*G339/100,F339*G339) -> 0.00
A341: 592 | B341: B2.2.4.2 | C341: PSDM 3.1 PSD 3.1.2 | D341: Hard excavation
A343: 2428 | D343: i) MR461 | E343: m³ | F343: 27 950 | G343: 0.00 | H343: =IF(E343 = CHAR(37), F343*G343/100,F343*G343) -> 0.00
A345: 2429 | D345: ii) Road 0 | E345: m³ | F345: 52 100 | G345: 0.00 | H345: =IF(E345 = CHAR(37), F345*G345/100,F345*G345) -> 0.00
A347: 2431 | D347: iv) Transnet Road | E347: m³ | F347: 1 500 | G347: 0.00 | H347: =IF(E347 = CHAR(37), F347*G347/100,F347*G347) -> 0.00
A349: 2432 | D349: v) Platform 1 | E349: m³ | F349: 30 500 | G349: 0.00 | H349: =IF(E349 = CHAR(37), F349*G349/100,F349*G349) -> 0.00
A351: 3199 | D351: ix) Stormwater Detention Dam 2 | E351: m³ | F351: 2 050 | G351: 0.00 | H351: =IF(E351 = CHAR(37), F351*G351/100,F351*G351) -> 0.00
A353: 593 | B353: B2.2.4.3 | D353: Boulder excavation Class A
A355: 2434 | D355: i) MR461 | E355: m³ | F355: 64 | G355: 0.00 | H355: =IF(E355 = CHAR(37), F355*G355/100,F355*G355) -> 0.00
A357: 2435 | D357: ii) Road 0 | E357: m³ | F357: 74 | G357: 0.00 | H357: =IF(E357 = CHAR(37), F357*G357/100,F357*G357) -> 0.00
A359: 2437 | D359: iv) Transnet Road | E359: m³ | F359: 12 | G359: 0.00 | H359: =IF(E359 = CHAR(37), F359*G359/100,F359*G359) -> 0.00
A361: 2438 | D361: v) Platform 1 | E361: m³ | F361: 62 | G361: 0.00 | H361: =IF(E361 = CHAR(37), F361*G361/100,F361*G361) -> 0.00
A363: 3076 | D363: ix) Stormwater Detention Dam 2 | E363: m³ | F363: 6 | G363: 0.00 | H363: =IF(E363 = CHAR(37), F363*G363/100,F363*G363) -> 0.00
A365: 594 | B365: B2.2.4.4 | D365: Boulder excavation Class B
A367: 2440 | D367: i) MR461 | E367: m³ | F367: 640 | G367: 0.00 | H367: =IF(E367 = CHAR(37), F367*G367/100,F367*G367) -> 0.00
A369: 2441 | D369: ii) Road 0 | E369: m³ | F369: 740 | G369: 0.00 | H369: =IF(E369 = CHAR(37), F369*G369/100,F369*G369) -> 0.00
A371: 2443 | D371: iv) Transnet Road | E371: m³ | F371: 120 | G371: 0.00 | H371: =IF(E371 = CHAR(37), F371*G371/100,F371*G371) -> 0.00
A373: 2444 | D373: v) Platform 1 | E373: m³ | F373: 620 | G373: 0.00 | H373: =IF(E373 = CHAR(37), F373*G373/100,F373*G373) -> 0.00
A375: 3080 | D375: ix) Stormwater Detention Dam 2 | E375: m³ | F375: 60 | G375: 0.00 | H375: =IF(E375 = CHAR(37), F375*G375/100,F375*G375) -> 0.00
A377: 595 | B377: B2.2.5 | C377: 8.3.8 | D377: Removal of oversize material | E377: m³ | F377: 100 | G377: 0.00 | H377: =IF(E377 = CHAR(37), F377*G377/100,F377*G377) -> 0.00
A379: 613 | B379: B2.3 | C379: 8.3.13 | D379: SURFACE FINISHES
B380: Total Carried Forward | H380: =SUM(H320:H379) -> 0.00
B381: WESTERN WASTE MANAGEMENT FACILITY
B382: Contract A - Roads, Platforms, Building and Services
B383: B: ROADS AND EARTHWORKS
H384: 2: EARTHWORKS (ROADS, SUBGRADE)
B385: ITEM NO | C385: PAYMENT | D385: DESCRIPTION | E385: UNIT | F385: QTY | G385: RATE | H385: AMOUNT R
B386: Brought Forward | H386: =H380 -> 0.00
A387: 614 | B387: B2.3.1 | D387: Topsoiling from site or stockpile
A389: 2460 | D389: i) MR461 | E389: m² | F389: 8 250 | G389: 0.00 | H389: =IF(E389 = CHAR(37), F389*G389/100,F389*G389) -> 0.00
A391: 2461 | D391: ii) Road 0 | E391: m² | F391: 12 000 | G391: 0.00 | H391: =IF(E391 = CHAR(37), F391*G391/100,F391*G391) -> 0.00
A393: 2462 | D393: iii) Road 1 (from Road MR461) | E393: m² | F393: 900 | G393: 0.00 | H393: =IF(E393 = CHAR(37), F393*G393/100,F393*G393) -> 0.00
... 424 more rows

Sheet Schedule 3
A1: Rate=G | B1: WESTERN WASTE MANAGEMENT FACILITY
B2: Contract A - Roads, Platforms, Building and Services
B3: C: STORMWATER
H4: 1: PIPE TRENCHES
B5: ITEM NO | C5: PAYMENT | D5: DESCRIPTION | E5: UNIT | F5: QTY | G5: RATE | H5: AMOUNT R
A6: 389 | C6: SANS 1200 DB | D6: SECTION 1: PIPE TRENCHES
A8: 395 | B8: C1.1 | D8: EXCAVATION
A10: 396 | B10: C1.1.1 | C10: 8.3.2(a) PSDB 3.1 PSDB 5.4 PSDB 8.3.2 | D10: Excavate in all materials for trenches backfill, compact, and dispose of surplus/unsuitable material, for pipes:
A12: 2922 | B12: C1.1.1.1 | D12: Over 100 up to 300 mm diam. for total trench depth (for subsoils):
A14: 2923 | D14: Exceeding 0,0 m but not exceeding 1,0 m | E14: m | F14: 700 | G14: 0.00 | H14: =IF(E14 = CHAR(37), F14*G14/100,F14*G14) -> 0.00
A16: 2924 | D16: Exceeding 1,0 m but not exceeding 2,0 m | E16: m | F16: 200 | G16: 0.00 | H16: =IF(E16 = CHAR(37), F16*G16/100,F16*G16) -> 0.00
A18: 407 | B18: C1.1.1.2 | D18: Over 300 up to 600 mm diam. for total trench depth:
A20: 408 | D20: Exceeding 1,0 m but not exceeding 2,0 m | E20: m | F20: 470 | G20: 0.00 | H20: =IF(E20 = CHAR(37), F20*G20/100,F20*G20) -> 0.00
A22: 409 | D22: Exceeding 2,0 m but not exceeding 3,0 m | E22: m | F22: 300 | G22: 0.00 | H22: =IF(E22 = CHAR(37), F22*G22/100,F22*G22) -> 0.00
A24: 410 | D24: Exceeding 3,0 m but not exceeding 4,0 m | E24: m | F24: 200 | G24: 0.00 | H24: =IF(E24 = CHAR(37), F24*G24/100,F24*G24) -> 0.00
A26: 2185 | B26: C1.1.1.3 | D26: Over 600 up to 900 mm diam. for total trench depth:
A28: 2186 | D28: Exceeding 1,0 m but not exceeding 2,0 m | E28: m | F28: 50 | G28: 0.00 | H28: =IF(E28 = CHAR(37), F28*G28/100,F28*G28) -> 0.00
A30: 2187 | D30: Exceeding 2,0 m but not exceeding 3,0 m | E30: m | F30: 50 | G30: 0.00 | H30: =IF(E30 = CHAR(37), F30*G30/100,F30*G30) -> 0.00
A32: 2188 | D32: Exceeding 3,0 m but not exceeding 4,0 m | E32: m | F32: 20 | G32: 0.00 | H32: =IF(E32 = CHAR(37), F32*G32/100,F32*G32) -> 0.00
A34: 411 | B34: C1.1.2 | C34: 8.3.2(b) | D34: Extra-over items C1.1.1 for (prov): | E34: m³ | G34: 0.00 | H34: =IF(E34 = CHAR(37), F34*G34/100,F34*G34) -> 0.00
A36: 413 | B36: C1.1.2.1 | C36: PSDB 3.1 | D36: Hard rock excavation | E36: m³ | F36: 65 | G36: 0.00 | H36: =IF(E36 = CHAR(37), F36*G36/100,F36*G36) -> 0.00
A38: 414 | B38: C1.1.3 | C38: 8.3.2(c) | D38: Excavate and dispose of unsuitable material from trench bottom (Provisional) | E38: m³ | F38: 145 | G38: 0.00 | H38: =IF(E38 = CHAR(37), F38*G38/100,F38*G38) -> 0.00
A40: 415 | B40: C1.2 | D40: EXCAVATION. ANCILLARIES Make up deficiency in backfill material (Provisional)
A42: 416 | B42: C1.2.1 | C42: 8.3.3.1(a | D42: from other necessary excavations on site | E42: m³ | F42: 400 | G42: 0.00 | H42: =IF(E42 = CHAR(37), F42*G42/100,F42*G42) -> 0.00
A44: 425 | B44: C1.3 | C44: 8.3.4(a) PSDB 5.1.5 | D44: Shore trench
A46: 426 | B46: C1.3.1 | D46: For trench deeper than 1.5m up to 3.0m | E46: m | F46: 240 | G46: 0.00 | H46: =IF(E46 = CHAR(37), F46*G46/100,F46*G46) -> 0.00
A48: 427 | B48: C1.3.2 | D48: For trench deeper than 3.0m | E48: m | F48: 80 | G48: 0.00 | H48: =IF(E48 = CHAR(37), F48*G48/100,F48*G48) -> 0.00
A50: 432 | B50: C1.4 | D50: EXISTING SERVICES
A52: 437 | B52: C1.4.1 | D52: Excavate by hand in soft material to expose service
A54: 441 | B54: C1.4.1.1 | C54: 8.3.5(a) | D54: Services that intersect a trench | E54: No. | F54: 5 | G54: 0.00 | H54: =IF(E54 = CHAR(37), F54*G54/100,F54*G54) -> 0.00
A56: 447 | B56: C1.4.1.2 | C56: 8.3.5(b) | D56: Services that adjoin a trench | E56: No. | F56: 30 | G56: 0.00 | H56: =IF(E56 = CHAR(37), F56*G56/100,F56*G56) -> 0.00
B57: Total Carried Forward To Summary | H57: =SUM(H6:H56) -> 0.00
B58: WESTERN WASTE MANAGEMENT FACILITY
B59: Contract A - Roads, Platforms, Building and Services
B60: C: STORMWATER
H61: 2: BEDDING (PIPES)
B62: ITEM NO | C62: PAYMENT | D62: DESCRIPTION | E62: UNIT | F62: QTY | G62: RATE | H62: AMOUNT R
A63: 1266 | C63: SANS 1200 LB | D63: SECTION 2: BEDDING
A65: 1267 | B65: C2.1 | D65: PROVISION OF BEDDING
A67: 2272 | B67: C2.1.1 | D67: Imported from
A69: 2926 | C69: 8.2.2.1 | D69: a) Other necessary excavations or stockpile for
A71: 2927 | D71: 2) Selected fill blanket | E71: m³ | F71: 800 | G71: 0.00 | H71: =IF(E71 = CHAR(37), F71*G71/100,F71*G71) -> 0.00
A73: 1278 | C73: 8.2.2.3 | D73: c) Commercial sources (Provisional)
A75: 1279 | D75: 1) Selected granular material | E75: m³ | F75: 720 | G75: 0.00 | H75: =IF(E75 = CHAR(37), F75*G75/100,F75*G75) -> 0.00
A77: 1280 | D77: 2) Selected fill material | E77: m³ | F77: 40 | G77: 0.00 | H77: =IF(E77 = CHAR(37), F77*G77/100,F77*G77) -> 0.00
A79: 2925 | D79: 3) Single size crushed stone, 19mm | E79: m³ | F79: 220 | G79: 0.00 | H79: =IF(E79 = CHAR(37), F79*G79/100,F79*G79) -> 0.00
A81: 1281 | B81: C2.2 | C81: 8.2.3 | D81: Concrete bedding (Provisional) | E81: m³ | F81: 40 | G81: 0.00 | H81: =IF(E81 = CHAR(37), F81*G81/100,F81*G81) -> 0.00
A83: 2928 | B83: C2.3 | D83: SEPARATION LAYER
A85: 2931 | B85: C2.3.1 | D85: Geotextile non-woven needle punched to
A87: 2929 | C87: PSDK 3.1.4 | D87: a) Subsoil drains 200gsm | E87: m² | F87: 2 000 | G87: 0.00 | H87: =IF(E87 = CHAR(37), F87*G87/100,F87*G87) -> 0.00
A89: 2930 | C89: PSDK 3.1.4 | D89: b) Below road layers 340 gsm | E89: m² | F89: 800 | G89: 0.00 | H89: =IF(E89 = CHAR(37), F89*G89/100,F89*G89) -> 0.00
B124: Total Carried Forward To Summary | H124: =SUM(H63:H123) -> 0.00
B125: WESTERN WASTE MANAGEMENT FACILITY
B126: Contract A - Roads, Platforms, Building and Services
B127: C: STORMWATER
H128: 3: STORMWATER DRAINAGE
B129: ITEM NO | C129: PAYMENT | D129: DESCRIPTION | E129: UNIT | F129: QTY | G129: RATE | H129: AMOUNT R
A130: 1346 | D130: SECTION 3:STORMWATER DRAINAGE
A132: 2285 | B132: C3.1 | C132: SANS 1200 LE | D132: PIPES
A134: 1350 | B134: C3.1.1 | C134: 8.2.1 | D134: Supply, handle, lay, bed on Class A bedding concrete pipe Type Spigot & Socket and Class 75D.
A136: 1353 | D136: a) 450 mm diameter | E136: m | F136: 80 | G136: 0.00 | H136: =IF(E136 = CHAR(37), F136*G136/100,F136*G136) -> 0.00
A138: 2932 | D138: b) 600 mm diameter | E138: m | F138: 10 | G138: 0.00 | H138: =IF(E138 = CHAR(37), F138*G138/100,F138*G138) -> 0.00
A140: 2275 | B140: C3.1.2 | C140: 8.2.1 | D140: Supply, handle, lay, bed on Class B bedding, concrete pipe Type Spigot & Socket and Class 75D.
A142: 2936 | D142: a) 450 mm diameter | E142: m | F142: 430 | G142: 0.00 | H142: =IF(E142 = CHAR(37), F142*G142/100,F142*G142) -> 0.00
A144: 2276 | D144: b) 600 mm diameter | E144: m | F144: 450 | G144: 0.00 | H144: =IF(E144 = CHAR(37), F144*G144/100,F144*G144) -> 0.00
A146: 2277 | D146: c) 750 mm diameter | E146: m | F146: 90 | G146: 0.00 | H146: =IF(E146 = CHAR(37), F146*G146/100,F146*G146) -> 0.00
A148: 2278 | D148: d) 900 mm diameter | E148: m | F148: 30 | G148: 0.00 | H148: =IF(E148 = CHAR(37), F148*G148/100,F148*G148) -> 0.00
A150: 2938 | B150: C3.2 | C150: 8.2.1 | D150: Supply, handle, lay, bed subsoil pipes:
A152: 2939 | D152: a) 100mm dia | E152: m | F152: 900 | G152: 0.00 | H152: =IF(E152 = CHAR(37), F152*G152/100,F152*G152) -> 0.00
A154: 1368 | B154: C3.3 | C154: 8.2.8 | D154: MANHOLES Construct complete with heavy duty cast iron covers and frames (Type 2B)
A156: 1369 | D156: a) Type A up to 1,5 m deep | E156: No. | F156: 4 | G156: 0.00 | H156: =IF(E156 = CHAR(37), F156*G156/100,F156*G156) -> 0.00
A158: 1370 | D158: b) Type B, up to 2.5 m deep | E158: No. | F158: 3 | G158: 0.00 | H158: =IF(E158 = CHAR(37), F158*G158/100,F158*G158) -> 0.00
A160: 2282 | D160: c) Extra over (a) and (b) above for extra depth
A162: 2283 | D162: i) Type A | E162: m | F162: 4 | G162: 0.00 | H162: =IF(E162 = CHAR(37), F162*G162/100,F162*G162) -> 0.00
A164: 2284 | D164: ii) Type B | E164: m | F164: 4 | G164: 0.00 | H164: =IF(E164 = CHAR(37), F164*G164/100,F164*G164) -> 0.00
A166: 1371 | B166: C3.4 | C166: 8.2.8 | D166: CATCHPITS Construct complete with heavy duty precast concrete cover and slabs
A168: 2286 | D168: a) Type S2 (up to 1.5m depth) | E168: No. | F168: 14 | G168: 0.00 | H168: =IF(E168 = CHAR(37), F168*G168/100,F168*G168) -> 0.00
A170: 2287 | D170: b) Type D3 (up to 1.5m depth) | E170: No. | F170: 10 | G170: 0.00 | H170: =IF(E170 = CHAR(37), F170*G170/100,F170*G170) -> 0.00
A172: 2288 | D172: c) Extra over (a) and ( b) above for extra depth | E172: m | F172: 6 | G172: 0.00 | H172: =IF(E172 = CHAR(37), F172*G172/100,F172*G172) -> 0.00
A174: 2297 | B174: C3.5 | C174: 8.2.8 | D174: HEADWALLS Construct complete as per standard drawing for pipe of diameter
A176: 2298 | D176: a) 600mm | E176: No. | F176: 4 | G176: 0.00 | H176: =IF(E176 = CHAR(37), F176*G176/100,F176*G176) -> 0.00
A178: 2299 | D178: b) 750mm | E178: No. | F178: 1 | G178: 0.00 | H178: =IF(E178 = CHAR(37), F178*G178/100,F178*G178) -> 0.00
A180: 2300 | D180: b) 900mm | E180: No. | F180: 1 | G180: 0.00 | H180: =IF(E180 = CHAR(37), F180*G180/100,F180*G180) -> 0.00
B184: Total Carried Forward | H184: =SUM(H130:H183) -> 0.00
B185: WESTERN WASTE MANAGEMENT FACILITY
B186: Contract A - Roads, Platforms, Building and Services
B187: C: STORMWATER
H188: 3: STORMWATER DRAINAGE
B189: ITEM NO | C189: PAYMENT | D189: DESCRIPTION | E189: UNIT | F189: QTY | G189: RATE | H189: AMOUNT R
B190: Brought Forward | H190: =H184 -> 0.00
A191: 1376 | B191: C3.6 | C191: 8.2.12 | D191: Extra-over item C3.1 for construction of inclined pipe culverts
A193: 2940 | D193: a) 450 mm diameter | E193: m | F193: 16 | G193: 0.00 | H193: =IF(E193 = CHAR(37), F193*G193/100,F193*G193) -> 0.00
A195: 2941 | D195: b) 600 mm diameter | E195: m | F195: 12 | G195: 0.00 | H195: =IF(E195 = CHAR(37), F195*G195/100,F195*G195) -> 0.00
A197: 2942 | D197: c) 750 mm diameter | E197: m | F197: 8 | G197: 0.00 | H197: =IF(E197 = CHAR(37), F197*G197/100,F197*G197) -> 0.00
A199: 2943 | D199: d) 900 mm diameter | E199: m | F199: 4 | G199: 0.00 | H199: =IF(E199 = CHAR(37), F199*G199/100,F199*G199) -> 0.00
A201: 1383 | B201: C3.7 | C201: 8.2.10 | D201: ACCESSORIES
A203: 1377 | B203: C3.7.1 | D203: Covers and grids
A205: 1384 | B205: C3.7.1.1 | D205: Extra over or under C3.3(a) and (b) for Heavy Duty Cast Iron Grid and frame
A207: 2295 | D207: a) 450 x 450 | E207: No. | F207: 9 | G207: 0.00 | H207: =IF(E207 = CHAR(37), F207*G207/100,F207*G207) -> 0.00
A209: 2296 | D209: b) 600 x 600 | E209: No. | F209: 16 | G209: 0.00 | H209: =IF(E209 = CHAR(37), F209*G209/100,F209*G209) -> 0.00
A211: 2944 | B211: C3.7.1.2 | D211: Extra over or under C3.3(a) and (b), and C3.4(a) and (b) for Heavy Duty Polymer Concrete (including frame)
A213: 2945 | D213: a) Grid 450 x 450 | E213: No. | F213: 9 | G213: 0.00 | H213: =IF(E213 = CHAR(37), F213*G213/100,F213*G213) -> 0.00
A215: 2946 | D215: b) Grid 600 x 600 | E215: No. | F215: 16 | G215: 0.00 | H215: =IF(E215 = CHAR(37), F215*G215/100,F215*G215) -> 0.00
A217: 3129 | D217: c) Cover Type 2B | E217: No. | F217: 7 | G217: 0.00 | H217: =IF(E217 = CHAR(37), F217*G217/100,F217*G217) -> 0.00
A219: 1386 | B219: C3.7.2 | D219: Step irons | E219: No. | F219: 48 | G219: 0.00 | H219: =IF(E219 = CHAR(37), F219*G219/100,F219*G219) -> 0.00
B247: Total Carried Forward To Summary | H247: =SUM(H190:H246) -> 0.00
B248: WESTERN WASTE MANAGEMENT FACILITY
B249: Contract A - Roads, Platforms, Building and Services
B250: C: STORMWATER
H251: 4: GABIONS AND PITCHING
B252: ITEM NO | C252: PAYMENT | D252: DESCRIPTION | E252: UNIT | F252: QTY | G252: RATE | H252: AMOUNT R
A253: 539 | C253: SANS 1200 DK | D253: SECTION 4: GABIONS AND PITCHING
A255: 540 | B255: C4.1 | C255: SANS 1200 DB | D255: EXCAVATION See Section D, DA, DE as applicable
A257: 2307 | B257: C4.1.1 | C257: 8.3.2 | D257: Excavate for gabions and mattresses in soft materials and place in embankment for:
A259: 2308 | D259: a) Gabion boxes | E259: m³ | F259: 30 | G259: 0.00 | H259: =IF(E259 = CHAR(37), F259*G259/100,F259*G259) -> 0.00
A261: 2309 | D261: b) Reno mattresses | E261: m³ | F261: 25 | G261: 0.00 | H261: =IF(E261 = CHAR(37), F261*G261/100,F261*G261) -> 0.00
A263: 2947 | D263: c) Terramesh (1m x 1m box with 3m tail) | E263: m³ | F263: 15 | G263: 0.00 | H263: =IF(E263 = CHAR(37), F263*G263/100,F263*G263) -> 0.00
A265: 2310 | B265: C4.1.2 | D265: Extra-over items C4.1.1 for excavation in:
A267: 2312 | B267: C4.1.2.1 | D267: hard material | E267: m³ | F267: 15 | G267: 0.00 | H267: =IF(E267 = CHAR(37), F267*G267/100,F267*G267) -> 0.00
A269: 541 | B269: C4.2 | D269: GABIONS
A271: 542 | B271: C4.2.1 | C271: 8.2.1 | D271: Surface preparation for bedding of gabions | E271: m² | F271: 150 | G271: 0.00 | H271: =IF(E271 = CHAR(37), F271*G271/100,F271*G271) -> 0.00
A273: 543 | B273: C4.3 | C273: 8.2.2 | D273: Construct gabions using PVC coated galvanised wire mesh
A275: 544 | D275: a) Toe mattresses of depth 0,25 m with diaphragms providing 2 m x 1 m cells | E275: m³ | F275: 30 | G275: 0.00 | H275: =IF(E275 = CHAR(37), F275*G275/100,F275*G275) -> 0.00
A277: 545 | D277: b) Foundation mattresses of depth 0,3 m with diaphragms providing 2 m x 1 m cells | E277: m³ | F277: 25 | G277: 0.00 | H277: =IF(E277 = CHAR(37), F277*G277/100,F277*G277) -> 0.00
A279: 546 | D279: c) Gabions of section 1,0 m x 1,0 m for walls | E279: m³ | F279: 50 | G279: 0.00 | H279: =IF(E279 = CHAR(37), F279*G279/100,F279*G279) -> 0.00
A281: 2948 | D281: d) Terramesh of section (1m x 1m box (including 3m tail)) | E281: m³ | F281: 190 | G281: 0.00 | H281: =IF(E281 = CHAR(37), F281*G281/100,F281*G281) -> 0.00
A283: 547 | B283: C4.4 | C283: 8.2.3 | D283: Extra-over item C4.3 for selected stone on exposed faces | E283: m² | F283: 100 | G283: 0.00 | H283: =IF(E283 = CHAR(37), F283*G283/100,F283*G283) -> 0.00
A285: 548 | B285: C4.5 | C285: 8.2.4 PSDK 3.1.4 | D285: Geotextile (non-woven needle punched, 340 g/m²) placed where ground water seepage occurs
A287: 549 | D287: a) below foundation mattresses | E287: m² | F287: 150 | G287: 0.00 | H287: =IF(E287 = CHAR(37), F287*G287/100,F287*G287) -> 0.00
A289: 550 | D289: b) on slope behind wall | E289: m² | F289: 180 | G289: 0.00 | H289: =IF(E289 = CHAR(37), F289*G289/100,F289*G289) -> 0.00
B306: Total Carried Forward To Summary | H306: =SUM(H253:H305) -> 0.00
B307: WESTERN WASTE MANAGEMENT FACILITY
B308: Contract A - Roads, Platforms, Building and Services
B309: C: STORMWATER
D310: SUMMARY OF SECTIONS
C311: SECTION | D311: DESCRIPTION | H311: AMOUNT R
C312: C1 | D312: PIPE TRENCHES | H312: =H57 -> 0.00
C314: C2 | D314: BEDDING | H314: =H124 -> 0.00
C316: C3 | D316: STORMWATER DRAINAGE | H316: =H247 -> 0.00
C318: C4 | D318: GABIONS AND PITCHING | H318: =H306 -> 0.00
C320: Total Carried Forward To Summary Of Schedules | H320: =SUM(H312:H319) -> 0.00

Sheet Schedule 4
A1: Rate=G | B1: WESTERN WASTE MANAGEMENT FACILITY
B2: Contract A - Roads, Platforms, Building and Services
B3: D: CONTAMINATED STORMWATER
H4: 1: PIPE TRENCHES
B5: ITEM NO | C5: PAYMENT | D5: DESCRIPTION | E5: UNIT | F5: QTY | G5: RATE | H5: AMOUNT R
A6: 1950 | C6: SANS 1200 DB | D6: SECTION 1: PIPE TRENCHES
A8: 1951 | B8: D1.1 | D8: EXCAVATION
A10: 1952 | B10: D1.1.1 | C10: 8.3.2(a) PSDB 3.1 PSDB 5.4 PSDB 8.3.2 | D10: Excavate in all materials for trenches backfill, compact, and dispose of surplus/unsuitable material, for pipes:
A12: 1956 | B12: D1.1.1.1 | D12: Over 100 up to 400 mm diam. for total trench depth:
A14: 1957 | D14: Exceeding 0,0 m but not exceeding 1,0 m | E14: m | F14: 10 | G14: 0.00 | H14: =IF(E14 = CHAR(37), F14*G14/100,F14*G14) -> 0.00
A16: 1958 | D16: Exceeding 1,0 m but not exceeding 2,0 m | E16: m | F16: 310 | G16: 0.00 | H16: =IF(E16 = CHAR(37), F16*G16/100,F16*G16) -> 0.00
A18: 1959 | D18: Exceeding 2,0 m but not exceeding 3,0 m | E18: m | F18: 200 | G18: 0.00 | H18: =IF(E18 = CHAR(37), F18*G18/100,F18*G18) -> 0.00
A20: 1960 | D20: Exceeding 3,0 m but not exceeding 4,0 m | E20: m | F20: 90 | G20: 0.00 | H20: =IF(E20 = CHAR(37), F20*G20/100,F20*G20) -> 0.00
A22: 1961 | D22: Exceeding 4,0 m but not exceeding 5,0 m | E22: m | F22: 70 | G22: 0.00 | H22: =IF(E22 = CHAR(37), F22*G22/100,F22*G22) -> 0.00
A24: 1967 | B24: D1.1.2 | C24: 8.3.2(b) | D24: Extra-over items D1.1.1.1 incl. for (prov):
A26: 1969 | B26: D1.1.2.1 | C26: PSDB 3.1 | D26: Hard rock excavation | E26: m³ | F26: 45 | G26: 0.00 | H26: =IF(E26 = CHAR(37), F26*G26/100,F26*G26) -> 0.00
A28: 1970 | B28: D1.1.3 | C28: 8.3.2(c) | D28: Excavate and dispose of unsuitable material from trench bottom (Provisional) | E28: m³ | F28: 35 | G28: 0.00 | H28: =IF(E28 = CHAR(37), F28*G28/100,F28*G28) -> 0.00
A30: 1971 | B30: D1.2 | D30: EXCAVATION. ANCILLARIES Make up deficiency in backfill material (Provisional)
A32: 1972 | B32: D1.2.1 | C32: 8.3.3.1(a | D32: from other necessary excavations on site | E32: m³ | F32: 180 | G32: 0.00 | H32: =IF(E32 = CHAR(37), F32*G32/100,F32*G32) -> 0.00
A34: 2313 | B34: D1.3 | C34: 8.3.4(a) | D34: Shore trench
A36: 2314 | B36: D1.3.1 | C36: PSDB 5.15 | D36: For trench deeper than 1.5m up to 3.0m | E36: m | F36: 270 | G36: 0.00 | H36: =IF(E36 = CHAR(37), F36*G36/100,F36*G36) -> 0.00
A38: 2315 | B38: D1.3.2 | D38: For trench deeper than 3.0m | E38: m | F38: 110 | G38: 0.00 | H38: =IF(E38 = CHAR(37), F38*G38/100,F38*G38) -> 0.00
A40: 1988 | B40: D1.4 | D40: EXISTING SERVICES
A42: 1989 | B42: D1.4.1 | C42: 8.3.5 | D42: Services across and in trenches
A44: 1997 | B44: D1.4.1.1 | C44: 8.3.5(a) | D44: Services that intersect a trench | E44: No. | F44: 2 | G44: 0.00 | H44: =IF(E44 = CHAR(37), F44*G44/100,F44*G44) -> 0.00
A46: 2003 | B46: D1.4.1.2 | C46: 8.3.5(b) | D46: Services that adjoin a trench | E46: m | F46: 40 | G46: 0.00 | H46: =IF(E46 = CHAR(37), F46*G46/100,F46*G46) -> 0.00
B61: Total Carried Forward To Summary | H61: =SUM(H6:H60) -> 0.00
B62: WESTERN WASTE MANAGEMENT FACILITY
B63: Contract A - Roads, Platforms, Building and Services
B64: D: CONTAMINATED STORMWATER
H65: 2: BEDDING (PIPES)
B66: ITEM NO | C66: PAYMENT | D66: DESCRIPTION | E66: UNIT | F66: QTY | G66: RATE | H66: AMOUNT R
A67: 2317 | C67: SANS 1200 LB | D67: SECTION 2: BEDDING
A69: 2318 | B69: D2.1 | D69: PROVISION OF BEDDING
A71: 2949 | B71: D2.1.1 | D71: Imported from
A73: 2950 | C73: 8.2.2.1 | D73: a) Other necessary excavations or stockpile
A75: 2951 | D75: 2) Selected fill blanket | E75: m³ | F75: 135 | G75: 0.00 | H75: =IF(E75 = CHAR(37), F75*G75/100,F75*G75) -> 0.00
A77: 2319 | C77: 8.2.2.3 | D77: c) Commercial sources (Provisional)
A79: 2320 | D79: 1) Selected granular material (sand) | E79: m³ | F79: 310 | G79: 0.00 | H79: =IF(E79 = CHAR(37), F79*G79/100,F79*G79) -> 0.00
A81: 2321 | D81: 2) Selected fill material | E81: m³ | F81: 20 | G81: 0.00 | H81: =IF(E81 = CHAR(37), F81*G81/100,F81*G81) -> 0.00
B128: Total Carried Forward To Summary | H128: =SUM(H67:H127) -> 0.00
B129: WESTERN WASTE MANAGEMENT FACILITY
B130: Contract A - Roads, Platforms, Building and Services
B131: D: CONTAMINATED STORMWATER
H132: 3: SEWERS (CONTAMINATED STORMWATER)
B133: ITEM NO | C133: PAYMENT | D133: DESCRIPTION | E133: UNIT | F133: QTY | G133: RATE | H133: AMOUNT R
A134: 1311 | C134: SANS | D134: SECTION 3: CONTAMINATED STORMWATER PIPES
A136: 1316 | B136: D3.1 | C136: 1200 LD | D136: PIPEWORK
A138: 1317 | B138: D3.1.1 | C138: 8.2.1 PSLD 3.1.8 PSLD 8.2.1 | D138: Supply, lay, joint, bed on Class Flexible Pipe bedding and test, HDPE contaminated stormwater pipes with welded joints
A140: 1318 | B140: D3.1.1.1 | D140: PN 6 PE 80
A142: 2722 | D142: a) 200 mm diam. | E142: m | F142: 110 | G142: 0.00 | H142: =IF(E142 = CHAR(37), F142*G142/100,F142*G142) -> 0.00
A144: 2723 | D144: b) 250 mm diam. | E144: m | F144: 400 | G144: 0.00 | H144: =IF(E144 = CHAR(37), F144*G144/100,F144*G144) -> 0.00
A146: 2724 | D146: c) 300 mm diam. | E146: m | F146: 90 | G146: 0.00 | H146: =IF(E146 = CHAR(37), F146*G146/100,F146*G146) -> 0.00
A148: 2725 | D148: d) 400 mm diam. | E148: m | F148: 70 | G148: 0.00 | H148: =IF(E148 = CHAR(37), F148*G148/100,F148*G148) -> 0.00
A150: 1329 | B150: D3.2 | C150: 1200 LD 8.2.3 | D150: MANHOLES, ETC. Manholes to Standard Detail
A152: 3134 | B152: D3.2.1 | D152: 1.0m dia precast concrete rings, complete with Heavy Duty Cast Iron cover and frame Type 2A, and including bitumen inner coating for depths over and up to
A154: 1331 | D154: 0.5 m 1,0 m | E154: No. | F154: 1 | G154: 0.00 | H154: =IF(E154 = CHAR(37), F154*G154/100,F154*G154) -> 0.00
A156: 1332 | D156: 1,0 m 1,5 m | E156: No. | F156: 4 | G156: 0.00 | H156: =IF(E156 = CHAR(37), F156*G156/100,F156*G156) -> 0.00
A158: 2323 | D158: 1,5m 2,0 m | E158: No. | F158: 3 | G158: 0.00 | H158: =IF(E158 = CHAR(37), F158*G158/100,F158*G158) -> 0.00
A160: 2324 | D160: 2,0 m 2,5 m | E160: No. | F160: 1 | G160: 0.00 | H160: =IF(E160 = CHAR(37), F160*G160/100,F160*G160) -> 0.00
A162: 2325 | D162: 2,5 m 3,0m | E162: No. | F162: 1 | G162: 0.00 | H162: =IF(E162 = CHAR(37), F162*G162/100,F162*G162) -> 0.00
A164: 3130 | B164: D3.3 | C164: 8.2.10 | D164: ACCESSORIES
A166: 3131 | B166: D3.3.1 | D166: Covers and grids
A168: 3132 | B168: D3.3.1.1 | D168: Extra over or under D3.2 for Heavy Duty Polymer Concrete (including frame)
A170: 3133 | D170: a) Type 2A | E170: No. | F170: 9 | G170: 0.00 | H170: =IF(E170 = CHAR(37), F170*G170/100,F170*G170) -> 0.00
A172: 3216 | B172: D3.3.1.2 | D172: Extra over or under D3.2 for Heavy Duty Cast Iron Grids (including frame)
A174: 3217 | D174: a) 600mm x 600mm | E174: No. | F174: 12 | G174: 0.00 | H174: =IF(E174 = CHAR(37), F174*G174/100,F174*G174) -> 0.00
B187: Total Carried Forward To Summary | H187: =SUM(H134:H186) -> 0.00
B188: WESTERN WASTE MANAGEMENT FACILITY
B189: Contract A - Roads, Platforms, Building and Services
B190: D: CONTAMINATED STORMWATER
D191: SUMMARY OF SECTIONS
C192: SECTION | D192: DESCRIPTION | H192: AMOUNT R
C193: D1 | D193: PIPE TRENCHES | H193: =H61 -> 0.00
C195: D2 | D195: BEDDING | H195: =H128 -> 0.00
C197: D3 | D197: CONTAMINATED STORMWATER | H197: =H187 -> 0.00
C199: Total Carried Forward To Summary Of Schedules | H199: =SUM(H193:H198) -> 0.00

Sheet Schedule 5
A1: Rate=G | B1: WESTERN WASTE MANAGEMENT FACILITY
B2: Contract A - Roads, Platforms, Building and Services
B3: E: SEWER
H4: 1: PIPE TRENCHES
B5: ITEM NO | C5: PAYMENT | D5: DESCRIPTION | E5: UNIT | F5: QTY | G5: RATE | H5: AMOUNT R
A6: 2687 | C6: SANS 1200 DB PSDB 3.1 PSDB 5.4 PSDB 8.2 | D6: SECTION 1: PIPE TRENCHES
A8: 2688 | B8: E1.1 | D8: EXCAVATION
A10: 2689 | B10: E1.1.1 | C10: 8.3.2(a) | D10: Excavate in all materials for trenches backfill, compact, and dispose of surplus/unsuitable material, for pipes:
A12: 2690 | B12: E1.1.1.1 | D12: Over 100 up to 300 mm diam. for total trench depth:
A14: 2691 | D14: Exceeding 0,0 m but not exceeding 1,0 m | E14: m | F14: 80 | G14: 0.00 | H14: =IF(E14 = CHAR(37), F14*G14/100,F14*G14) -> 0.00
A16: 2692 | D16: Exceeding 1,0 m but not exceeding 2,0 m | E16: m | F16: 230 | G16: 0.00 | H16: =IF(E16 = CHAR(37), F16*G16/100,F16*G16) -> 0.00
A18: 2693 | D18: Exceeding 2,0 m but not exceeding 3,0 m | E18: m | F18: 100 | G18: 0.00 | H18: =IF(E18 = CHAR(37), F18*G18/100,F18*G18) -> 0.00
A20: 2694 | D20: Exceeding 3,0 m but not exceeding 4,0 m | E20: m | F20: 50 | G20: 0.00 | H20: =IF(E20 = CHAR(37), F20*G20/100,F20*G20) -> 0.00
A22: 2695 | D22: Exceeding 4,0 m but not exceeding 5,0 m | E22: m | F22: 20 | G22: 0.00 | H22: =IF(E22 = CHAR(37), F22*G22/100,F22*G22) -> 0.00
A24: 2696 | D24: Exceeding 5,0 m but not exceeding 6,0 m | E24: m | F24: 20 | G24: 0.00 | H24: =IF(E24 = CHAR(37), F24*G24/100,F24*G24) -> 0.00
A26: 2697 | B26: E1.1.2 | C26: 8.3.2(b) | D26: Extra-over items E1.1.1 for (prov):
A28: 2699 | B28: E1.1.2.1 | C28: PSDB 3.1 | D28: Hard rock excavation | E28: m³ | F28: 30 | G28: 0.00 | H28: =IF(E28 = CHAR(37), F28*G28/100,F28*G28) -> 0.00
A30: 2700 | B30: E1.1.3 | C30: 8.3.2(c) | D30: Excavate and dispose of unsuitable material from trench bottom (Provisional) | E30: m³ | F30: 30 | G30: 0.00 | H30: =IF(E30 = CHAR(37), F30*G30/100,F30*G30) -> 0.00
A32: 2701 | B32: E1.2 | D32: EXCAVATION. ANCILLARIES Make up deficiency in backfill material (Provisional)
A34: 2702 | B34: E1.2.1 | C34: 8.3.3.1(a | D34: from other necessary excavations on site | E34: m³ | F34: 400 | G34: 0.00 | H34: =IF(E34 = CHAR(37), F34*G34/100,F34*G34) -> 0.00
A36: 2708 | B36: E1.3 | C36: 8.3.4(a) | D36: Shore trench
A38: 2709 | B38: E1.3.1 | C38: PSDB 5.1.5 | D38: For trench deeper than 1.5m up to 3.0m | E38: m | F38: 30 | G38: 0.00 | H38: =IF(E38 = CHAR(37), F38*G38/100,F38*G38) -> 0.00
A40: 2710 | B40: E1.3.2 | D40: For trench deeper than 3.0m | E40: m | F40: 20 | G40: 0.00 | H40: =IF(E40 = CHAR(37), F40*G40/100,F40*G40) -> 0.00
A42: 2704 | B42: E1.4 | D42: EXISTING SERVICES
A44: 2705 | B44: E1.4.1 | C44: 8.3.5 | D44: Services across and in trenches
A46: 2706 | B46: E1.4.1.1 | C46: 8.3.5(a) | D46: Services that intersect a trench | E46: No. | F46: 1 | G46: 0.00 | H46: =IF(E46 = CHAR(37), F46*G46/100,F46*G46) -> 0.00
A48: 2707 | B48: E1.4.1.2 | C48: 8.3.5(b) | D48: Services that adjoin a trench | E48: m | F48: 20 | G48: 0.00 | H48: =IF(E48 = CHAR(37), F48*G48/100,F48*G48) -> 0.00
B58: Total Carried Forward To Summary | H58: =SUM(H6:H57) -> 0.00
B59: WESTERN WASTE MANAGEMENT FACILITY
B60: Contract A - Roads, Platforms, Building and Services
B61: E: SEWER
H62: 2: BEDDING (PIPES)
B63: ITEM NO | C63: PAYMENT | D63: DESCRIPTION | E63: UNIT | F63: QTY | G63: RATE | H63: AMOUNT R
A64: 2712 | C64: SANS 1200 LB | D64: SECTION 2: BEDDING
A66: 2713 | B66: E2.1 | D66: PROVISION OF BEDDING
A68: 2711 | B68: E2.1.1 | D68: Imported from
A70: 2952 | C70: 8.2.2.1 | D70: a) Other necessary excavations or stockpile
A72: 2953 | D72: 2) Selected fill blanket | E72: m³ | F72: 70 | G72: 0.00 | H72: =IF(E72 = CHAR(37), F72*G72/100,F72*G72) -> 0.00
A74: 2714 | C74: 8.2.2.3 | D74: c) Commercial sources (Provisional)
A76: 2715 | D76: 1) Selected granular material | E76: m³ | F76: 90 | G76: 0.00 | H76: =IF(E76 = CHAR(37), F76*G76/100,F76*G76) -> 0.00
A78: 2716 | D78: 2) Selected fill material | E78: m³ | F78: 80 | G78: 0.00 | H78: =IF(E78 = CHAR(37), F78*G78/100,F78*G78) -> 0.00
A80: 2954 | B80: E2.2 | D80: PROTECTION SLAB
A82: 2955 | B82: E2.2.1 | D82: 100mm Thick protection slab as per detail (Concrete Class 25/20) | E82: m³ | F82: 3 | G82: 0.00 | H82: =IF(E82 = CHAR(37), F82*G82/100,F82*G82) -> 0.00
B124: Total Carried Forward To Summary | H124: =SUM(H64:H123) -> 0.00
B125: WESTERN WASTE MANAGEMENT FACILITY
B126: Contract A - Roads, Platforms, Building and Services
B127: E: SEWER
H128: 3: SEWERS
B129: ITEM NO | C129: PAYMENT | D129: DESCRIPTION | E129: UNIT | F129: QTY | G129: RATE | H129: AMOUNT R
A130: 2675 | C130: SANS | D130: SECTION 3: SEWERS
A132: 2676 | B132: E3.1 | C132: 1200 LD | D132: PIPEWORK
A134: 2677 | B134: E3.1.1 | C134: 8.2.1 | D134: Supply, lay, joint, bed on Class Flexible and test uPVC sewer pipes with socketed joints
A136: 2678 | B136: E3.1.1.1 | D136: 150 mm diam., Class 34 | E136: m | F136: 500 | G136: 0.00 | H136: =IF(E136 = CHAR(37), F136*G136/100,F136*G136) -> 0.00
A138: 2679 | B138: E3.2 | C138: 1200 LD 8.2.3 | D138: MANHOLES, ETC. Manholes to standard drawing
A140: 3135 | D140: 1.0m dia precast concrete rings, complete with Heavy Duty Cast Iron cover and frame Type 2A, for depths over and up to
A142: 2680 | D142: 0.5 m 1,0 m | E142: No. | F142: 4 | G142: 0.00 | H142: =IF(E142 = CHAR(37), F142*G142/100,F142*G142) -> 0.00
A144: 2681 | D144: 1,0 m 1,5 m | E144: No. | F144: 8 | G144: 0.00 | H144: =IF(E144 = CHAR(37), F144*G144/100,F144*G144) -> 0.00
A146: 2717 | D146: 1,5 m 2,0 m | E146: No. | F146: 4 | G146: 0.00 | H146: =IF(E146 = CHAR(37), F146*G146/100,F146*G146) -> 0.00
A148: 2718 | D148: 2,0 m 2,5 m | E148: No. | F148: 2 | G148: 0.00 | H148: =IF(E148 = CHAR(37), F148*G148/100,F148*G148) -> 0.00
A150: 2719 | D150: 2,5 m 3,0m | E150: No. | F150: 1 | G150: 0.00 | H150: =IF(E150 = CHAR(37), F150*G150/100,F150*G150) -> 0.00
A152: 2682 | B152: E3.3 | C152: 8.2.4 | D152: Extra-over item E3.2 for construction of backdrops and ramps including extra excavation, formwork, joints, etc., to standard drawing for depths over and up to
A154: 2683 | D154: - 1,0 m | E154: No. | F154: 1 | G154: 0.00 | H154: =IF(E154 = CHAR(37), F154*G154/100,F154*G154) -> 0.00
A156: 2684 | D156: 1,0 m 2,0 m | E156: No. | F156: 1 | G156: 0.00 | H156: =IF(E156 = CHAR(37), F156*G156/100,F156*G156) -> 0.00
A158: 2685 | D158: 2,0 m 3,0 m | E158: No. | F158: 1 | G158: 0.00 | H158: =IF(E158 = CHAR(37), F158*G158/100,F158*G158) -> 0.00
A160: 2686 | B160: E3.4 | D160: SUNDRIES
A162: 2720 | B162: E3.4.1 | D162: Septic tank Type 1 - 9000 litre capacity (as per standard drawing) - complete | E162: No. | F162: 2 | G162: 0.00 | H162: =IF(E162 = CHAR(37), F162*G162/100,F162*G162) -> 0.00
A164: 3432 | B164: E3.4.2 | D164: Septic tank Type 2- 1700 litre capacity (as per standard drawing) - complete | E164: No. | F164: 1 | G164: 0.00 | H164: =IF(E164 = CHAR(37), F164*G164/100,F164*G164) -> 0.00
A166: 2721 | B166: E3.4.3 | D166: Soakaway (as per standard drawing) including excavation, stone, filter fabric, perforated pipe | E166: m | F166: 40 | G166: 0.00 | H166: =IF(E166 = CHAR(37), F166*G166/100,F166*G166) -> 0.00
B182: Total Carried Forward To Summary | H182: =SUM(H130:H181) -> 0.00
B183: WESTERN WASTE MANAGEMENT FACILITY
B184: Contract A - Roads, Platforms, Building and Services
B185: E: SEWER
D186: SUMMARY OF SECTIONS
C187: SECTION | D187: DESCRIPTION | H187: AMOUNT R
C188: E1 | D188: PIPE TRENCHES | H188: =H58 -> 0.00
C190: E2 | D190: BEDDING | H190: =H124 -> 0.00
C192: E3 | D192: SEWERS | H192: =H182 -> 0.00
C194: Total Carried Forward To Summary Of Schedules | H194: =SUM(H188:H193) -> 0.00

Sheet Schedule 6
A1: Rate=G | B1: WESTERN WASTE MANAGEMENT FACILITY
B2: Contract A - Roads, Platforms, Building and Services
B3: F: WATERMAINS
H4: 1: PIPE TRENCHES
B5: ITEM NO | C5: PAYMENT | D5: DESCRIPTION | E5: UNIT | F5: QTY | G5: RATE | H5: AMOUNT R
A6: 2017 | C6: SANS 1200 DB | D6: SECTION 1: PIPE TRENCHES
A8: 2018 | B8: F1.1 | D8: EXCAVATION
A10: 2019 | B10: F1.1.1 | C10: 8.3.2(a) PSDB 3.1 PSDB 5.4 PSDB 8.3.2 | D10: Excavate in all materials for trenches backfill, compact, and dispose of surplus/unsuitable material, for pipes:
A12: 3136 | B12: F1.1.1.1 | D12: up to 150 mm diam. for total trench depth:
A14: 2020 | D14: Exceeding 0,0 m but not exceeding 1,0 m | E14: m | F14: 800 | G14: 0.00 | H14: =IF(E14 = CHAR(37), F14*G14/100,F14*G14) -> 0.00
A16: 2021 | D16: Exceeding 1,0 m but not exceeding 2,0 m | E16: m | F16: 380 | G16: 0.00 | H16: =IF(E16 = CHAR(37), F16*G16/100,F16*G16) -> 0.00
A18: 2034 | B18: F1.1.2 | C18: 8.3.2(b) | D18: Extra-over items F1.1.1.1 for (prov):
A20: 2036 | B20: F1.1.2.1 | C20: PSDB 3.1 | D20: Hard rock excavation | E20: m³ | F20: 20 | G20: 0.00 | H20: =IF(E20 = CHAR(37), F20*G20/100,F20*G20) -> 0.00
A22: 2037 | B22: F1.1.3 | C22: 8.3.2(c) | D22: Excavate and dispose of unsuitable material from trench bottom (Provisional) | E22: m³ | F22: 30 | G22: 0.00 | H22: =IF(E22 = CHAR(37), F22*G22/100,F22*G22) -> 0.00
A24: 2038 | B24: F1.2 | D24: EXCAVATION. ANCILLARIES Make up deficiency in backfill material (Provisional)
A26: 2039 | B26: F1.2.1 | C26: 8.3.3.1(a | D26: from other necessary excavations on site | E26: m³ | F26: 150 | G26: 0.00 | H26: =IF(E26 = CHAR(37), F26*G26/100,F26*G26) -> 0.00
A28: 2040 | B28: F1.2.2 | C28: 8.3.3.1(b | D28: by importation from designated borrow pits | E28: m³ | F28: 50 | G28: 0.00 | H28: =IF(E28 = CHAR(37), F28*G28/100,F28*G28) -> 0.00
A30: 2041 | B30: F1.2.3 | C30: 8.3.3.1(c | D30: by importation from commercial or off-site sources selected by the Contractor | E30: m³ | F30: 20 | G30: 0.00 | H30: =IF(E30 = CHAR(37), F30*G30/100,F30*G30) -> 0.00
A32: 2048 | B32: F1.3 | C32: 8.3.4(a) | D32: Shore trench
A34: 2956 | B34: F1.3.1 | C34: PSDB 5.1.5 | D34: For trench deeper than 1.5m up to 3.0m | E34: m | F34: 30 | G34: 0.00 | H34: =IF(E34 = CHAR(37), F34*G34/100,F34*G34) -> 0.00
A36: 2055 | B36: F1.4 | D36: EXISTING SERVICES
A38: 2057 | B38: F1.4.1 | D38: Location
A40: 2060 | B40: F1.4.1.1 | D40: Excavate by hand in soft material to expose services | E40: m³ | F40: 10 | G40: 0.00 | H40: =IF(E40 = CHAR(37), F40*G40/100,F40*G40) -> 0.00
A42: 2061 | B42: F1.4.2 | D42: Dealing with services
A44: 2064 | B44: F1.4.2.1 | C44: 8.3.5(a) | D44: Services that intersect a trench
A46: 2065 | D46: a) Cables | E46: No. | F46: 2 | G46: 0.00 | H46: =IF(E46 = CHAR(37), F46*G46/100,F46*G46) -> 0.00
A48: 2069 | D48: b) Pipes up to 600 mm | E48: No. | F48: 4 | G48: 0.00 | H48: =IF(E48 = CHAR(37), F48*G48/100,F48*G48) -> 0.00
A50: 2070 | B50: F1.4.2.2 | C50: 8.3.5(b) | D50: Services that adjoin a trench
A52: 2071 | D52: a) Cables | E52: m | F52: 20 | G52: 0.00 | H52: =IF(E52 = CHAR(37), F52*G52/100,F52*G52) -> 0.00
A54: 2072 | D54: b) Pipes up to 600 mm | E54: m | F54: 10 | G54: 0.00 | H54: =IF(E54 = CHAR(37), F54*G54/100,F54*G54) -> 0.00
B60: Total Carried Forward To Summary | H60: =SUM(H6:H59) -> 0.00
B61: WESTERN WASTE MANAGEMENT FACILITY
B62: Contract A - Roads, Platforms, Building and Services
B63: F: WATERMAINS
H64: 2: BEDDING (PIPES)
B65: ITEM NO | C65: PAYMENT | D65: DESCRIPTION | E65: UNIT | F65: QTY | G65: RATE | H65: AMOUNT R
A66: 2083 | C66: SANS 1200 LB | D66: SECTION 2: BEDDING
A68: 2084 | B68: F2.1 | D68: PROVISION OF BEDDING
A70: 2088 | B70: F2.1.1 | D70: Imported from
A72: 2089 | C72: 8.2.2.1 | D72: a) Other necessary excavations or stockpile
A74: 2091 | D74: 2) Selected fill blanket | E74: m³ | F74: 200 | G74: 0.00 | H74: =IF(E74 = CHAR(37), F74*G74/100,F74*G74) -> 0.00
A76: 2095 | C76: 8.2.2.3 | D76: c) Commercial sources (Provisional)
A78: 2096 | D78: 1) Selected granular material (sand) | E78: m³ | F78: 280 | G78: 0.00 | H78: =IF(E78 = CHAR(37), F78*G78/100,F78*G78) -> 0.00
A80: 2097 | D80: 2) Selected fill material | E80: m³ | F80: 30 | G80: 0.00 | H80: =IF(E80 = CHAR(37), F80*G80/100,F80*G80) -> 0.00
B127: Total Carried Forward To Summary | H127: =SUM(H66:H126) -> 0.00
B128: WESTERN WASTE MANAGEMENT FACILITY
B129: Contract A - Roads, Platforms, Building and Services
B130: F: WATERMAINS
H131: 3: MEDIUM-PRESSURE PIPELINES
B132: ITEM NO | C132: PAYMENT | D132: DESCRIPTION | E132: UNIT | F132: QTY | G132: RATE | H132: AMOUNT R
A133: 1148 | D133: SECTION 3: WATER MAINS
A135: 1150 | B135: F3.1 | C135: SANS 1200 L | D135: PIPELINE
A137: 1151 | B137: F3.1.1 | C137: 8.2.1 PSDB 3.1 PSBD 5.4 PSBD 8.3.2 | D137: uPVC pipes Class 12: Supply, handle, lay, and bed with Flexible Pipe Bedding, Joint with spigot and socket couplings, test, and disinfect (potable water pipeline)
A139: 1152 | D139: a) 75mm diam. | E139: m | F139: 820 | G139: 0.00 | H139: =IF(E139 = CHAR(37), F139*G139/100,F139*G139) -> 0.00
A141: 1154 | D141: b) 110mm diam. | E141: m | F141: 270 | G141: 0.00 | H141: =IF(E141 = CHAR(37), F141*G141/100,F141*G141) -> 0.00
A143: 1155 | B143: F3.1.2 | C143: 8.2.1 | D143: HDPE pipes Class PN 12 (PE80): Supply, handle, lay in Flexible Pipe Bedding, joint with compression type couplings, test, and disinfect (potable water pipelines)
A145: 1156 | D145: a) 50mm diam. | E145: m | F145: 90 | G145: 0.00 | H145: =IF(E145 = CHAR(37), F145*G145/100,F145*G145) -> 0.00
A147: 2985 | B147: F3.1.3 | C147: 8.2.1 PSDB 3.1 PSBD 5.4 PSBD 8.3.2 | D147: Hot dipped Galvanised Pipes with bolted flanges: Supply, handle, lay,join, test, and disinfect (potable water pipeline)
A149: 2986 | D149: a) 75mm diam. | E149: m | F149: 8 | G149: 0.00 | H149: =IF(E149 = CHAR(37), F149*G149/100,F149*G149) -> 0.00
A151: 2987 | D151: b) 110mm diam. | E151: m | F151: 4 | G151: 0.00 | H151: =IF(E151 = CHAR(37), F151*G151/100,F151*G151) -> 0.00
A153: 1160 | B153: F3.2 | D153: Extra-over item F3.1 for laying pipes through sleeve pipes | E153: m | F153: 15 | G153: 0.00 | H153: =IF(E153 = CHAR(37), F153*G153/100,F153*G153) -> 0.00
A155: 3000 | B155: F3.3 | D155: Extra-over item F3.1.3 for attaching steel pipe to side of tank
A157: 3139 | D157: a) 75mm diam. | E157: m | F157: 2 | G157: 0.00 | H157: =IF(E157 = CHAR(37), F157*G157/100,F157*G157) -> 0.00
A159: 3140 | D159: b) 110mm diam. | E159: m | F159: 1 | G159: 0.00 | H159: =IF(E159 = CHAR(37), F159*G159/100,F159*G159) -> 0.00
A161: 3001 | B161: F3.4 | D161: Extra-over item F3.1.3 for special wrapping of buried steel pipes (Denso tape or similar)
A163: 3141 | D163: a) 75mm diam. | E163: m | F163: 6 | G163: 0.00 | H163: =IF(E163 = CHAR(37), F163*G163/100,F163*G163) -> 0.00
A165: 3142 | D165: b) 110mm diam. | E165: m | F165: 3 | G165: 0.00 | H165: =IF(E165 = CHAR(37), F165*G165/100,F165*G165) -> 0.00
A167: 1187 | B167: F3.5 | C167: 1200 L 8.2.5 | D167: SUPPLY AND FIT, INCL. BED, TEST AND DISINFECT (if for potable water) PIPES, VALVES, AND SPECIALS: (Short pipe runs)
A169: 1190 | B169: F3.5.1 | C169: SANS 1200 L | D169: SPECIALS AND FITTINGS
A171: 1191 | B171: F3.5.1.1 | C171: 8.2.2 | D171: Supply, lay, and bed, joint, incl cut pipes to length where required, test and disinfect: Extra-over items for pipe laying
A173: 1192 | B173: F3.5.1.1.1 | D173: Bends uPVC Class 12 Plain-ended incl couplings
B175: Total Carried Forward | H175: =SUM(H133:H174) -> 0.00
B176: WESTERN WASTE MANAGEMENT FACILITY
B177: Contract A - Roads, Platforms, Building and Services
B178: F: WATERMAINS
H179: 3: MEDIUM-PRESSURE PIPELINES
B180: ITEM NO | C180: PAYMENT | D180: DESCRIPTION | E180: UNIT | F180: QTY | G180: RATE | H180: AMOUNT R
B181: Brought Forward | H181: =H175 -> 0.00
A182: 1193 | D182: a) 75mm diam. 11.25 deg. | E182: No. | F182: 7 | G182: 0.00 | H182: =IF(E182 = CHAR(37), F182*G182/100,F182*G182) -> 0.00
A184: 2974 | D184: b) 75mm diam. 22.5 deg. | E184: No. | F184: 6 | G184: 0.00 | H184: =IF(E184 = CHAR(37), F184*G184/100,F184*G184) -> 0.00
A186: 2957 | D186: c) 75mm diam. 45 deg. | E186: No. | F186: 2 | G186: 0.00 | H186: =IF(E186 = CHAR(37), F186*G186/100,F186*G186) -> 0.00
A188: 1194 | D188: d) 75mm diam. 90 deg. | E188: No. | F188: 6 | G188: 0.00 | H188: =IF(E188 = CHAR(37), F188*G188/100,F188*G188) -> 0.00
A190: 2958 | D190: e) 110mm diam. 11.25 deg. | E190: No. | F190: 3 | G190: 0.00 | H190: =IF(E190 = CHAR(37), F190*G190/100,F190*G190) -> 0.00
A192: 2975 | D192: f) 110mm diam. 22.5 deg. | E192: No. | F192: 2 | G192: 0.00 | H192: =IF(E192 = CHAR(37), F192*G192/100,F192*G192) -> 0.00
A194: 2959 | D194: g) 110mm diam. 45 deg. | E194: No. | F194: 1 | G194: 0.00 | H194: =IF(E194 = CHAR(37), F194*G194/100,F194*G194) -> 0.00
A196: 2960 | D196: h) 110mm diam. 90 deg. | E196: No. | F196: 1 | G196: 0.00 | H196: =IF(E196 = CHAR(37), F196*G196/100,F196*G196) -> 0.00
A198: 2976 | B198: F3.5.1.1.2 | D198: Bends HDPE Class 12 Plain-ended incl couplings
A200: 2977 | D200: a) 50mm diam. 45 deg. | E200: No. | F200: 1 | G200: 0.00 | H200: =IF(E200 = CHAR(37), F200*G200/100,F200*G200) -> 0.00
A202: 3143 | D202: a) 50mm diam. 90 deg. | E202: No. | F202: 1 | G202: 0.00 | H202: =IF(E202 = CHAR(37), F202*G202/100,F202*G202) -> 0.00
A204: 2994 | B204: F3.5.1.1.3 | D204: Bends hot dipped galvanised steel flanged
A206: 2995 | D206: a) 75mm diam. 90 deg. | E206: No. | F206: 8 | G206: 0.00 | H206: =IF(E206 = CHAR(37), F206*G206/100,F206*G206) -> 0.00
A208: 2996 | D208: b) 110mm diam. 90 deg. | E208: No. | F208: 2 | G208: 0.00 | H208: =IF(E208 = CHAR(37), F208*G208/100,F208*G208) -> 0.00
A210: 2997 | B210: F3.5.1.1.4 | D210: Spool piece hot dipped galvanised steel flanged
A212: 2998 | D212: a) 75mm diam. 90 deg. | E212: No. | F212: 3 | G212: 0.00 | H212: =IF(E212 = CHAR(37), F212*G212/100,F212*G212) -> 0.00
A214: 2999 | D214: b) 110mm diam. 90 deg. | E214: No. | F214: 1 | G214: 0.00 | H214: =IF(E214 = CHAR(37), F214*G214/100,F214*G214) -> 0.00
A216: 2961 | B216: F3.5.1.1.5 | D216: Reducers uPVC Class 12 Plain-ended incl. couplings
A218: 2962 | D218: a) 110mm to 75mm diam. | E218: No. | F218: 1 | G218: 0.00 | H218: =IF(E218 = CHAR(37), F218*G218/100,F218*G218) -> 0.00
A220: 2963 | B220: F3.5.1.1.6 | D220: Tee's (Equal legs) uPVC Class 12 Plain-ended incl. couplings
A222: 2964 | D222: a) 75mm dia. | E222: No. | F222: 2 | G222: 0.00 | H222: =IF(E222 = CHAR(37), F222*G222/100,F222*G222) -> 0.00
A224: 2965 | D224: b) 110mm dia. | E224: No. | F224: 1 | G224: 0.00 | H224: =IF(E224 = CHAR(37), F224*G224/100,F224*G224) -> 0.00
A226: 3144 | B226: F3.5.1.1.7 | D226: Hydrant Tee's (unequal legs) Cast iron 110/75 flanged on tee leg only | E226: No. | F226: 2 | G226: 0.00 | H226: =IF(E226 = CHAR(37), F226*G226/100,F226*G226) -> 0.00
A228: 2966 | B228: F3.5.1.1.8 | D228: Couplings (plain / flanged)
A230: 2967 | D230: a) 75mm uPVC plain to 50mm HDPE plain | E230: No. | F230: 2 | G230: 0.00 | H230: =IF(E230 = CHAR(37), F230*G230/100,F230*G230) -> 0.00
A232: 2968 | D232: b) 75mm uPVC plain to 75mm Galvanised Steel flanged | E232: No. | F232: 2 | G232: 0.00 | H232: =IF(E232 = CHAR(37), F232*G232/100,F232*G232) -> 0.00
A234: 2990 | D234: c) 110mm uPVC plain to 110mm Galvanised Steel flanged | E234: No. | F234: 1 | G234: 0.00 | H234: =IF(E234 = CHAR(37), F234*G234/100,F234*G234) -> 0.00
A236: 2989 | B236: F3.5.1.1.9 | D236: Couplings (flanged)
B237: Total Carried Forward | H237: =SUM(H181:H236) -> 0.00
B238: WESTERN WASTE MANAGEMENT FACILITY
B239: Contract A - Roads, Platforms, Building and Services
B240: F: WATERMAINS
H241: 3: MEDIUM-PRESSURE PIPELINES
B242: ITEM NO | C242: PAYMENT | D242: DESCRIPTION | E242: UNIT | F242: QTY | G242: RATE | H242: AMOUNT R
B243: Brought Forward | H243: =H237 -> 0.00
A244: 2988 | D244: a) 75mm uPVC to 75mm Galvanised Steel | E244: No. | F244: 1 | G244: 0.00 | H244: =IF(E244 = CHAR(37), F244*G244/100,F244*G244) -> 0.00
A246: 2969 | B246: F3.5.1.1.10 | D246: End caps
A248: 2970 | D248: a) uPVC 75mm dia. | E248: No. | F248: 1 | G248: 0.00 | H248: =IF(E248 = CHAR(37), F248*G248/100,F248*G248) -> 0.00
A250: 2971 | D250: b) HDPE 50mm dia. | E250: No. | F250: 2 | G250: 0.00 | H250: =IF(E250 = CHAR(37), F250*G250/100,F250*G250) -> 0.00
A252: 1209 | B252: F3.5.1.2 | C252: 8.2.3 | D252: VALVES Supply, in valve box or install on concrete support, joint, incl cut pipes where necessary, test, hand closing, (non-) rising spindle.
A254: 1210 | B254: F3.5.1.2.1 | D254: Flanged Isolating Valve including flange adapters
A256: 1211 | D256: a) 50mm diam. on HDPE pipe | E256: No. | F256: 2 | G256: 0.00 | H256: =IF(E256 = CHAR(37), F256*G256/100,F256*G256) -> 0.00
A258: 2978 | D258: b) 75mm diam.on uPVC pipe | E258: No. | F258: 9 | G258: 0.00 | H258: =IF(E258 = CHAR(37), F258*G258/100,F258*G258) -> 0.00
A260: 1213 | D260: c) 110mm diam.on uPVC pipe | E260: No. | F260: 4 | G260: 0.00 | H260: =IF(E260 = CHAR(37), F260*G260/100,F260*G260) -> 0.00
A262: 2991 | B262: F3.5.1.2.2 | D262: Flanged Isolating Valve on galvanised steel pipe
A264: 2992 | D264: a) 75mm diam. | E264: No. | F264: 2 | G264: 0.00 | H264: =IF(E264 = CHAR(37), F264*G264/100,F264*G264) -> 0.00
A266: 2993 | D266: b) 110mm diam. | E266: No. | F266: 1 | G266: 0.00 | H266: =IF(E266 = CHAR(37), F266*G266/100,F266*G266) -> 0.00
A268: 2972 | B268: F3.5.1.2.3 | D268: Flanged non-return valves including flange adapters
A270: 2973 | D270: a) 75mm diam. | E270: No. | F270: 1 | G270: 0.00 | H270: =IF(E270 = CHAR(37), F270*G270/100,F270*G270) -> 0.00
A272: 2979 | B272: F3.5.1.2.4 | D272: Flanged air release valves including flange adapters
A274: 2980 | D274: a) 75mm diam. | E274: No. | F274: 2 | G274: 0.00 | H274: =IF(E274 = CHAR(37), F274*G274/100,F274*G274) -> 0.00
A276: 2981 | D276: b) 110mm diam. | E276: No. | F276: 1 | G276: 0.00 | H276: =IF(E276 = CHAR(37), F276*G276/100,F276*G276) -> 0.00
A278: 3004 | B278: F3.5.1.2.5 | D278: Level Control Valve on steel inlet pipe (flanged) (Bermad or similar approved)
A280: 3005 | D280: a) 75mm diam. | E280: No. | F280: 1 | G280: 0.00 | H280: =IF(E280 = CHAR(37), F280*G280/100,F280*G280) -> 0.00
A282: 3145 | B282: F3.5.1.2.6 | D282: Flanged In-line water filter on steel pipe
A284: 3146 | D284: a) 75mm diam. | E284: No. | F284: 1 | G284: 0.00 | H284: =IF(E284 = CHAR(37), F284*G284/100,F284*G284) -> 0.00
A286: 3147 | B286: F3.5.1.2.7 | D286: Flanged Water meter on steel pipe
A288: 3148 | D288: a) 75mm diam. | E288: No. | F288: 1 | G288: 0.00 | H288: =IF(E288 = CHAR(37), F288*G288/100,F288*G288) -> 0.00
A290: 3149 | D290: b) 110mm diam. | E290: No. | G290: 0.00 | H290: Rate Only
A292: 1221 | B292: F3.6 | D292: ANCILLARIES
A294: 1222 | B294: F3.6.1 | C294: 8.2.11 | D294: Anchor/Thrust blocks and pedestals
A296: 1223 | B296: F3.6.1.1 | D296: Type A to standard detail
B297: Total Carried Forward | H297: =SUM(H243:H296) -> 0.00
B298: WESTERN WASTE MANAGEMENT FACILITY
B299: Contract A - Roads, Platforms, Building and Services
B300: F: WATERMAINS
H301: 3: MEDIUM-PRESSURE PIPELINES
B302: ITEM NO | C302: PAYMENT | D302: DESCRIPTION | E302: UNIT | F302: QTY | G302: RATE | H302: AMOUNT R
B303: Brought Forward | H303: =H297 -> 0.00
A304: 1225 | D304: a) Concrete Class 20/20 including formwork | E304: m³ | F304: 8 | G304: 0.00 | H304: =IF(E304 = CHAR(37), F304*G304/100,F304*G304) -> 0.00
A306: 1228 | B306: F3.7 | C306: 8.2.12 | D306: Concrete casing | E306: m³ | F306: 2 | G306: 0.00 | H306: =IF(E306 = CHAR(37), F306*G306/100,F306*G306) -> 0.00
A308: 1229 | B308: F3.8 | C308: 8.2.13 | D308: VALVE CHAMBERS AND MANHOLES:
A310: 1232 | B310: F3.8.1 | D310: Hydrant above ground level including concrete encasement | E310: No. | F310: 2 | G310: 0.00 | H310: =IF(E310 = CHAR(37), F310*G310/100,F310*G310) -> 0.00
A312: 1239 | B312: F3.9 | D312: Marker posts | E312: No. | F312: 20 | G312: 0.00 | H312: =IF(E312 = CHAR(37), F312*G312/100,F312*G312) -> 0.00
A314: 3137 | B314: F3.10 | D314: MUNICIPAL CONNECTION
A316: 3138 | B316: F3.10.1 | D316: Tie into municipal connection, 75mm dia (including galvanised steel pipework and bends for above ground filter, meter and 2 No isolating valves) | E316: Sum | F316: 1 | G316: 0.00 | H316: =IF(E316 = CHAR(37), F316*G316/100,F316*G316) -> 0.00
A318: 3423 | B318: F3.11 | C318: SANS 1200 HA | D318: WATER TANK
A320: 3422 | B320: F3.11.1 | C320: PSHA 8 | D320: c) 220 KL Pressed Steel Tank (Complete as per detail) | E320: Sum | F320: 1 | G320: 0.00 | H320: =IF(E320 = CHAR(37), F320*G320/100,F320*G320) -> 0.00
B358: Total Carried Forward To Summary | H358: =SUM(H303:H357) -> 0.00
B359: WESTERN WASTE MANAGEMENT FACILITY
B360: Contract A - Roads, Platforms, Building and Services
B361: F: WATERMAINS
D362: SUMMARY OF SECTIONS
C363: SECTION | D363: DESCRIPTION | H363: AMOUNT R
C364: F1 | D364: PIPE TRENCHES | H364: =H60 -> 0.00
C366: F2 | D366: BEDDING | H366: =H127 -> 0.00
C368: F3 | D368: WATER MAINS | H368: =H358 -> 0.00
C370: Total Carried Forward To Summary Of Schedules | H370: =SUM(H364:H369) -> 0.00

Sheet Schedule 7
A1: Rate=G | B1: WESTERN WASTE MANAGEMENT FACILITY
B2: Contract A - Roads, Platforms, Building and Services
B3: G: CABLE DUCTS
H4: 1: PIPE TRENCHES
B5: ITEM NO | C5: PAYMENT | D5: DESCRIPTION | E5: UNIT | F5: QTY | G5: RATE | H5: AMOUNT R
A6: 2331 | C6: SANS 1200 DB | D6: SECTION 1: PIPE TRENCHES
A8: 2332 | B8: G1.1 | D8: EXCAVATION
A10: 2333 | B10: G1.1.1 | C10: 8.3.2(a) PSDB 3.1 PSDB 5.4 PSDB 8.3.2 | D10: Excavate in all materials for trenches backfill, compact, and dispose of surplus/unsuitable material, for:
A12: 2334 | B12: G1.1.1.1 | D12: Over 500mm to 1000mm trench width for total trench depth:
A14: 2335 | D14: Exceeding 0,0 m but not exceeding 1,0 m | E14: m | F14: 90 | G14: 0.00 | H14: =IF(E14 = CHAR(37), F14*G14/100,F14*G14) -> 0.00
A16: 2336 | D16: Exceeding 1,0 m but not exceeding 2,0 m | E16: m | F16: 70 | G16: 0.00 | H16: =IF(E16 = CHAR(37), F16*G16/100,F16*G16) -> 0.00
A18: 3219 | B18: G1.1.1.2 | D18: Over 1000mm to 1500mm trench width for total trench depth:
A20: 3220 | D20: Exceeding 0,0 m but not exceeding 1,0 m | E20: m | F20: 90 | G20: 0.00 | H20: =IF(E20 = CHAR(37), F20*G20/100,F20*G20) -> 0.00
A22: 3221 | D22: Exceeding 1,0 m but not exceeding 2,0 m | E22: m | F22: 70 | G22: 0.00 | H22: =IF(E22 = CHAR(37), F22*G22/100,F22*G22) -> 0.00
A24: 2341 | B24: G1.1.2 | C24: 8.3.2(b) | D24: Extra-over items G1.1.1 for (prov):
A26: 2343 | B26: G1.1.2.1 | D26: Hard rock excavation | E26: m³ | F26: 20 | G26: 0.00 | H26: =IF(E26 = CHAR(37), F26*G26/100,F26*G26) -> 0.00
A28: 2344 | B28: G1.1.3 | C28: 8.3.2(c) | D28: Excavate and dispose of unsuitable material from trench bottom (Provisional) | E28: m³ | F28: 10 | G28: 0.00 | H28: =IF(E28 = CHAR(37), F28*G28/100,F28*G28) -> 0.00
A30: 2345 | B30: G1.2 | D30: EXCAVATION. ANCILLARIES Make up deficiency in backfill material (Provisional)
A32: 2346 | B32: G1.2.1 | C32: 8.3.3.1(a | D32: from other necessary excavations on site | E32: m³ | F32: 30 | G32: 0.00 | H32: =IF(E32 = CHAR(37), F32*G32/100,F32*G32) -> 0.00
B59: Total Carried Forward To Summary | H59: =SUM(H6:H58) -> 0.00
B60: WESTERN WASTE MANAGEMENT FACILITY
B61: Contract A - Roads, Platforms, Building and Services
B62: G: CABLE DUCTS
H63: 2: BEDDING (PIPES)
B64: ITEM NO | C64: PAYMENT | D64: DESCRIPTION | E64: UNIT | F64: QTY | G64: RATE | H64: AMOUNT R
A65: 2353 | C65: SANS 1200 LB | D65: SECTION 2: BEDDING
A67: 2354 | B67: G2.1 | D67: PROVISION OF BEDDING
A69: 2352 | B69: G2.1.1 | D69: Imported from
A71: 2982 | B71: G2.1.1.1 | C71: 8.2.2.1 | D71: a) Other necessary excavations or stockpile
A73: 2983 | D73: 2) Selected fill blanket | E73: m³ | F73: 50 | G73: 0.00 | H73: =IF(E73 = CHAR(37), F73*G73/100,F73*G73) -> 0.00
A75: 2355 | B75: G2.1.1.2 | C75: 8.2.2.3 | D75: c) Commercial sources (Provisional)
A77: 2356 | D77: 1) Selected granular material (sand) | E77: m³ | F77: 100 | G77: 0.00 | H77: =IF(E77 = CHAR(37), F77*G77/100,F77*G77) -> 0.00
A79: 2357 | D79: 2) Selected fill material | E79: m³ | F79: 30 | G79: 0.00 | H79: =IF(E79 = CHAR(37), F79*G79/100,F79*G79) -> 0.00
A81: 3218 | D81: 3) Concrete encasement Class 10/26 | E81: m³ | F81: 75 | G81: 0.00 | H81: =IF(E81 = CHAR(37), F81*G81/100,F81*G81) -> 0.00
B126: Total Carried Forward To Summary | H126: =SUM(H65:H125) -> 0.00
B127: WESTERN WASTE MANAGEMENT FACILITY
B128: Contract A - Roads, Platforms, Building and Services
B129: G: CABLE DUCTS
H130: 3: CABLE DUCTS
B131: ITEM NO | C131: PAYMENT | D131: DESCRIPTION | E131: UNIT | F131: QTY | G131: RATE | H131: AMOUNT R
A132: 1285 | C132: SANS 1200 LC | D132: SECTION 3: CABLE DUCTS
A134: 1291 | B134: G3.1 | C134: 8.2.5 | D134: SUPPLY, LAY, BED, AND PROVE DUCTS
A136: 1292 | B136: G3.1.1 | D136: 100 mm diam. uPVC pipes Class 34 | E136: m | F136: 450 | G136: 0.00 | H136: =IF(E136 = CHAR(37), F136*G136/100,F136*G136) -> 0.00
A138: 1293 | B138: G3.1.2 | D138: 160 mm diam. uPVC pipes Class 34 | E138: m | F138: 290 | G138: 0.00 | H138: =IF(E138 = CHAR(37), F138*G138/100,F138*G138) -> 0.00
A140: 2984 | B140: G3.1.3 | D140: 300 mm diam. Concrete pipes (Spigot and Socket, Class 75D) | E140: m | F140: 30 | G140: 0.00 | H140: =IF(E140 = CHAR(37), F140*G140/100,F140*G140) -> 0.00
A142: 1296 | B142: G3.2 | C142: 8.2.7 | D142: DRAW PITS/MANHOLES COMPLETE
A144: 1297 | B144: G3.2.1 | D144: Cable Duct Marker and Headwall to standard detail | E144: No. | F144: 24 | G144: 0.00 | H144: =IF(E144 = CHAR(37), F144*G144/100,F144*G144) -> 0.00
A146: 1299 | B146: G3.3 | C146: PSLC3.4 | D146: CABLE PROTECTION
A148: 1302 | B148: G3.3.1 | C148: 8.2.8 | D148: CABLE ROUTE MARKERS Complete, installed, and record submitted | E148: No. | F148: 24 | G148: 0.00 | H148: =IF(E148 = CHAR(37), F148*G148/100,F148*G148) -> 0.00
B190: Total Carried Forward To Summary | H190: =SUM(H132:H189) -> 0.00
B191: WESTERN WASTE MANAGEMENT FACILITY
B192: Contract A - Roads, Platforms, Building and Services
B193: G: CABLE DUCTS
D194: SUMMARY OF SECTIONS
C195: SECTION | D195: DESCRIPTION | H195: AMOUNT R
C196: G1 | D196: PIPE TRENCHES | H196: =H59 -> 0.00
C198: G2 | D198: BEDDING | H198: =H126 -> 0.00
C200: G3 | D200: CABLE DUCTS | H200: =H190 -> 0.00
C202: Total Carried Forward To Summary Of Schedules | H202: =SUM(H196:H201) -> 0.00

Sheet Schedule 8
A1: Rate=G | B1: WESTERN WASTE MANAGEMENT FACILITY
B2: Contract A - Roads, Platforms, Building and Services
B3: H: FENCING
H4: 1: FENCING
B5: ITEM NO | C5: PAYMENT | D5: DESCRIPTION | E5: UNIT | F5: QTY | G5: RATE | H5: AMOUNT R
A6: 3006 | C6: SABS 1200 MM | D6: SECTION 1: FENCING
A8: 3007 | B8: H1.1 | C8: PS | D8: Setting out | E8: Sum | F8: 1 | G8: 0.00 | H8: =IF(E8 = CHAR(37), F8*G8/100,F8*G8) -> 0.00
A10: 3013 | B10: H1.2 | C10: SABS 1200 C 8.2.1 | D10: Clear and grub fence-line (strip of 3m width) | E10: m | F10: 1 950 | G10: 0.00 | H10: =IF(E10 = CHAR(37), F10*G10/100,F10*G10) -> 0.00
A12: 3008 | B12: H1.3 | D12: Localised trimming of ground-line to match fence | E12: m² | F12: 1 200 | G12: 0.00 | H12: =IF(E12 = CHAR(37), F12*G12/100,F12*G12) -> 0.00
A14: 3009 | B14: H1.4 | D14: FENCING
A16: 3010 | B16: H1.4.1 | D16: Supply and install fence complete with posts and straining posts set in concrete
A18: 3011 | B18: H1.4.1.1 | C18: PSMM 8.2.1 | D18: a) ClearVu or similar approved,1.8m height, welded mesh with maximum apertures not greater than 13mm hor. x 80mm vert. | E18: m | F18: 1 950 | G18: 0.00 | H18: =IF(E18 = CHAR(37), F18*G18/100,F18*G18) -> 0.00
A20: 3012 | B20: H1.4.1.2 | D20: b) Weld mesh, galvanised, 1.8m high with 50mm x 50mm aperture | E20: m | G20: 0.00 | H20: Rate Only
A22: 3020 | B22: H1.4.1.3 | D22: c) Razor wire coil topping to fence | E22: m | G22: 0.00 | H22: Rate Only
A24: 3014 | B24: H1.4.1.4 | C24: PSMM 8.2.1 | D24: d) Gates (installed by approved specialist sub-contractor)
A26: 3015 | D26: i) Main Entrance at MR461 (2 x 5m sliding) | E26: Sum | F26: 1 | G26: 0.00 | H26: =IF(E26 = CHAR(37), F26*G26/100,F26*G26) -> 0.00
A28: 3016 | D28: ii) Exit to Landfill on Road 0 (2 x 4m double leaf swing) | E28: Sum | F28: 1 | G28: 0.00 | H28: =IF(E28 = CHAR(37), F28*G28/100,F28*G28) -> 0.00
A30: 3017 | D30: iii) Pedestrian entrance adjacent to MR461 (1 x 1m swing) | E30: Sum | F30: 1 | G30: 0.00 | H30: =IF(E30 = CHAR(37), F30*G30/100,F30*G30) -> 0.00
A32: 3018 | D32: iv) Water tank entrance (2 x 2.5m double leaf swing) | E32: Sum | F32: 1 | G32: 0.00 | H32: =IF(E32 = CHAR(37), F32*G32/100,F32*G32) -> 0.00
A34: 3019 | D34: v) Contractors mark-up on (i) to (iv) above | E34: % | F34: 85 000 | G34: 0.00 | H34: =IF(E34 = CHAR(37), F34*G34/100,F34*G34) -> 0.00
B57: Total Carried Forward To Summary | H57: =SUM(H6:H56) -> 0.00
B58: WESTERN WASTE MANAGEMENT FACILITY
B59: Contract A - Roads, Platforms, Building and Services
B60: H: FENCING
D61: SUMMARY OF SECTIONS
C62: SECTION | D62: DESCRIPTION | H62: AMOUNT R
C63: H1 | D63: FENCING | H63: =H57 -> 0.00
C65: Total Carried Forward To Summary Of Schedules | H65: =SUM(H63:H64) -> 0.00

Sheet Schedule 9
A1: Rate=G | B1: WESTERN WASTE MANAGEMENT FACILITY
B2: Contract A - Roads, Platforms, Building and Services
B3: I: ELECTRICAL
H4: 1: FIXED CHARGES
B5: ITEM NO | C5: PAYMENT | D5: DESCRIPTION | E5: UNIT | F5: QTY | G5: RATE | H5: AMOUNT R
A6: 3800 | D6: SECTION 1: FIXED CHARGES
A8: 3802 | B8: I1.1 | D8: FIXED CHARGES
A10: 3803 | B10: I1.1.1 | D10: Fixed preliminary and general items required for the successful completion of the installation | E10: Sum | F10: 1.0 | G10: 0.00 | H10: =IF(E10 = CHAR(37), F10*G10/100,F10*G10) -> 0.00
A12: 3804 | B12: I1.1.2 | D12: Value related preliminary and general items required for the successful completion of the installation | E12: Sum | F12: 1.0 | G12: 0.00 | H12: =IF(E12 = CHAR(37), F12*G12/100,F12*G12) -> 0.00
A14: 3805 | B14: I1.1.3 | D14: Time related preliminary and general items required for the successful completion of the installation | E14: Sum | F14: 1.0 | G14: 0.00 | H14: =IF(E14 = CHAR(37), F14*G14/100,F14*G14) -> 0.00
A16: 3806 | B16: I1.2 | D16: LUMP SUMS
A18: 3807 | B18: I1.2.1 | D18: Compliance with the Occupational Health and Safety Act, 1993 and Construction Regulations, 2003. It is specifically stated that the employer shall prepare a documented health and safety specification for the works and that the employer shall ensure that the contractor has made provision for the cost of health and safety measures during the execution of the works. The contractor shall price opposite this item for compliance with the act and the regulations and the reasonable provisions of the aforementioned health and safety specifications. | E18: Sum | F18: 1.0 | G18: 0.00 | H18: =IF(E18 = CHAR(37), F18*G18/100,F18*G18) -> 0.00
A20: 3808 | B20: I1.2.2 | D20: Guarantee of complete installation for 12 months | E20: Sum | F20: 1.0 | G20: 0.00 | H20: =IF(E20 = CHAR(37), F20*G20/100,F20*G20) -> 0.00
A22: 3809 | B22: I1.2.3 | D22: Production and submittal of builders work drawings, installation / working drawings, shop drawings, all as specified | E22: Sum | F22: 1.0 | G22: 0.00 | H22: =IF(E22 = CHAR(37), F22*G22/100,F22*G22) -> 0.00
A24: 3810 | B24: I1.2.4 | D24: Operating & Maintenance Manuals, complete and to the satisfaction of the engineer and compliant with the specification | E24: Sum | F24: 1.0 | G24: 0.00 | H24: =IF(E24 = CHAR(37), F24*G24/100,F24*G24) -> 0.00
A26: 3811 | B26: I1.2.5 | D26: As Built Drawings, commented and approved, all as per the specification | E26: Sum | F26: 1.0 | G26: 0.00 | H26: =IF(E26 = CHAR(37), F26*G26/100,F26*G26) -> 0.00
A28: 3812 | B28: I1.2.6 | D28: Training of Client Staff and Operators | E28: Sum | F28: 1.0 | G28: 0.00 | H28: =IF(E28 = CHAR(37), F28*G28/100,F28*G28) -> 0.00
A30: 3813 | B30: I1.2.7 | D30: Monthly maintenance of complete installation including maintenance log book and monthly reports | E30: No. | F30: 12.0 | G30: 0.00 | H30: =IF(E30 = CHAR(37), F30*G30/100,F30*G30) -> 0.00
A32: 3814 | B32: I1.3 | D32: CONTRACTOR'S MARK-UP
A34: 3815 | B34: I13.1 | D34: Main Contractors mark-up on I1.1, I1.2 and I2 for attendance / managing of specialised sub contractor | E34: % | G34: 0.00 | H34: =IF(E34 = CHAR(37), F34*G34/100,F34*G34) -> 0.00
B43: Total Carried Forward To Summary | H43: =SUM(H6:H42) -> 0.00
B44: WESTERN WASTE MANAGEMENT FACILITY
B45: Contract A - Roads, Platforms, Building and Services
B46: I: ELECTRICAL
H47: 2: ELECTRICAL
B48: ITEM NO | C48: PAYMENT | D48: DESCRIPTION | E48: UNIT | F48: QTY | G48: RATE | H48: AMOUNT R
A49: 3816 | D49: SECTION 2: ELECTRICAL
A51: 3833 | B51: I2.1 | D51: CONNECTION
A53: 3834 | B53: I2.1.1 | D53: New electrical connection to:500 kVA | E53: Sum | F53: 1.0 | G53: 500 000.00 | H53: 500 000.00
A55: 3835 | B55: I2.1.2 | D55: Profit & Attendance on electrical connection.If the percentage of Profit & Attendance is not indicated, a percentage of maximum 10% will be applied. | E55: % | F55: =H53 -> 500 000.0 | G55: 0.00 | H55: =IF(E55 = CHAR(37), F55*G55/100,F55*G55) -> 0.00
A57: 3836 | B57: I2.1.3 | D57: 500 kVA 11kV Miniature Substation complete with street light panel, circuit breakers etc. as specified. MV-switchgear to be a 3-switch Ring Main Unit. | E57: Sum | F57: 1.0 | G57: 0.00 | H57: =IF(E57 = CHAR(37), F57*G57/100,F57*G57) -> 0.00
A59: 3837 | B59: I2.1.4 | D59: Earthing of miniature substation to achieve a maximum resistance of one (1) ohm. | E59: Sum | F59: 1.0 | G59: 0.00 | H59: =IF(E59 = CHAR(37), F59*G59/100,F59*G59) -> 0.00
A61: 3838 | B61: I2.1.5 | D61: Plinth for Mini-sub | E61: Sum | F61: 1.0 | G61: 0.00 | H61: =IF(E61 = CHAR(37), F61*G61/100,F61*G61) -> 0.00
A63: 3839 | B63: I2.1.6 | D63: Supply and install a 3 Phase kVA/kWh meter (equal and approved to ELSTER A1700) in the mini-sub complete with CT's, test block, modem and computer software. | E63: Sum | F63: 1.0 | G63: 0.00 | H63: =IF(E63 = CHAR(37), F63*G63/100,F63*G63) -> 0.00
A65: 3840 | B65: I2.2 | D65: MEDIUM VOLTAGE CABLING
A67: 3841 | D67: Supply, install and connect Medium Voltage Cabling:
A69: 3842 | B69: I2.2.1 | D69: 50mm² XLPE x 3 core 11kV (6.35/11kV) in cable trenches | E69: m | F69: 70.0 | G69: 0.00 | H69: =IF(E69 = CHAR(37), F69*G69/100,F69*G69) -> 0.00
A71: 3843 | B71: I2.2.2 | D71: 50mm² XLPE Cable - Termination per cable end | E71: No. | F71: 2.0 | G71: 0.00 | H71: =IF(E71 = CHAR(37), F71*G71/100,F71*G71) -> 0.00
A73: 3844 | B73: I2.2.3 | D73: 35mm² PVC Insulated (Black) Copper Earth Wire | E73: m | F73: 70.0 | G73: 0.00 | H73: =IF(E73 = CHAR(37), F73*G73/100,F73*G73) -> 0.00
A75: 3845 | B75: I2.2.4 | D75: Pressure Testing of XLPE Cable as per specification. | E75: Sum | F75: 1.0 | G75: 0.00 | H75: =IF(E75 = CHAR(37), F75*G75/100,F75*G75) -> 0.00
A77: 3846 | B77: I2.2.5 | D77: Electrical Safety Notice Plates, as specified, per set. | E77: No. | F77: 6.0 | G77: 0.00 | H77: =IF(E77 = CHAR(37), F77*G77/100,F77*G77) -> 0.00
A79: 3847 | B79: I2.3 | D79: FEEDER CABLES
A81: 4116 | D81: Supply, install and connect 660/1000 Volt multi-core PVC insulated armoured cables (PVC/SWA/ECC) as specified:
A83: 3848 | B83: I2.3.1 | D83: 185mm² x 4 core | E83: m | F83: 190.0 | G83: 0.00 | H83: =IF(E83 = CHAR(37), F83*G83/100,F83*G83) -> 0.00
A85: 3849 | B85: I2.3.2 | D85: 185mm² x 4 core - per cable end termination | E85: No. | F85: 2.0 | G85: 0.00 | H85: =IF(E85 = CHAR(37), F85*G85/100,F85*G85) -> 0.00
A87: 3850 | B87: I2.3.3 | D87: 95mm² x 4 core | E87: m | F87: 130.0 | G87: 0.00 | H87: =IF(E87 = CHAR(37), F87*G87/100,F87*G87) -> 0.00
A89: 3851 | B89: I2.3.4 | D89: 95mm² x 4 core - per cable end termination | E89: No. | F89: 2.0 | G89: 0.00 | H89: =IF(E89 = CHAR(37), F89*G89/100,F89*G89) -> 0.00
A91: 3852 | B91: I2.3.5 | D91: 16mm² x 4 core | E91: m | F91: 135.0 | G91: 0.00 | H91: =IF(E91 = CHAR(37), F91*G91/100,F91*G91) -> 0.00
A93: 3853 | B93: I2.3.6 | D93: 16mm² x 4 core - per cable end termination | E93: No. | F93: 2.0 | G93: 0.00 | H93: =IF(E93 = CHAR(37), F93*G93/100,F93*G93) -> 0.00
B95: Total Carried Forward | H95: =SUM(H49:H94) -> 500 000.00
B96: WESTERN WASTE MANAGEMENT FACILITY
B97: Contract A - Roads, Platforms, Building and Services
B98: I: ELECTRICAL
H99: 2: ELECTRICAL
B100: ITEM NO | C100: PAYMENT | D100: DESCRIPTION | E100: UNIT | F100: QTY | G100: RATE | H100: AMOUNT R
B101: Brought Forward | H101: =H95 -> 500 000.00
A102: 4117 | B102: I2.3.7 | D102: 16mm² x 2 core | E102: m | F102: 120.0 | G102: 0.00 | H102: =IF(E102 = CHAR(37), F102*G102/100,F102*G102) -> 0.00
A104: 4118 | B104: I2.3.8 | D104: 16mm² x 2 core - per cable end termination | E104: No. | F104: 2.0 | G104: 0.00 | H104: =IF(E104 = CHAR(37), F104*G104/100,F104*G104) -> 0.00
A106: 3858 | B106: I2.5 | D106: PVC SLEEVES
A108: 3859 | B108: I2.5.1 | D108: 110mm diameter HDPE Corrugated - Colour BLACK | E108: m | F108: 575.0 | G108: 0.00 | H108: =IF(E108 = CHAR(37), F108*G108/100,F108*G108) -> 0.00
A110: 3860 | B110: I2.6 | D110: MANHOLES
A112: 3861 | D112: Supply and install pre-fabricated manholes to accommodate multiple diameter
A114: 3862 | B114: I2.6.1 | D114: 1000mm dia. round by 1000mm deep AXS 900R (axsCHAMBER Range) - C250 (250 | E114: No. | F114: 3.0 | G114: 0.00 | H114: =IF(E114 = CHAR(37), F114*G114/100,F114*G114) -> 0.00
A116: 3863 | B116: I2.6.2 | D116: AXS 900R Lid for above manhole chamber - C250 | E116: No. | F116: 3.0 | G116: 0.00 | H116: =IF(E116 = CHAR(37), F116*G116/100,F116*G116) -> 0.00
A118: 3864 | B118: I2.7 | D118: CABLE / SLEEVE EXCAVATIONS / TRENCHES
A120: 3865 | D120: Trench excavations for cables and cable sleeves including bedding, temporary support of sides, keeping excavations dry, backfilling, compacting and removing of surplus material (measurements in cubic metres):
A122: 3866 | B122: I2.7.1 | D122: Pickable material | E122: m³ | F122: 171.0 | G122: 0.00 | H122: =IF(E122 = CHAR(37), F122*G122/100,F122*G122) -> 0.00
A124: 3867 | B124: I2.7.2 | D124: For soft rock | E124: m³ | F124: 139.0 | G124: 0.00 | H124: =IF(E124 = CHAR(37), F124*G124/100,F124*G124) -> 0.00
A126: 3869 | D126: Back Filling (as per specification):
A128: 3870 | B128: I2.7.3 | D128: Bedding material - under cables and/or sleeves (200mm thick) | E128: m³ | F128: 70.0 | G128: 0.00 | H128: =IF(E128 = CHAR(37), F128*G128/100,F128*G128) -> 0.00
A130: 3871 | B130: I2.7.4 | D130: Blanket material - above cables and/or sleeves (200mm thick) | E130: m³ | F130: 70.0 | G130: 0.00 | H130: =IF(E130 = CHAR(37), F130*G130/100,F130*G130) -> 0.00
A132: 3872 | B132: I2.7.5 | D132: Filling material - above blanket to final ground level | E132: m³ | F132: 80.0 | G132: 0.00 | H132: =IF(E132 = CHAR(37), F132*G132/100,F132*G132) -> 0.00
A134: 3873 | B134: I2.7.6 | D134: Supply and install cable warning tape above cables in excavations: | E134: m | F134: 450.0 | G134: 0.00 | H134: =IF(E134 = CHAR(37), F134*G134/100,F134*G134) -> 0.00
A136: 3874 | B136: I2.7.7 | D136: Supply and install Cable Route Markers: | E136: No. | F136: 10.0 | G136: 0.00 | H136: =IF(E136 = CHAR(37), F136*G136/100,F136*G136) -> 0.00
A138: 3875 | D138: CORE DRILLING
A140: 3876 | D140: Core drill through concrete floor for allowing of sleeves penetration through floor
A142: 3877 | B142: I2.7.8 | D142: Sleeve diameter - 110mm | E142: No. | F142: 3.0 | G142: 0.00 | H142: =IF(E142 = CHAR(37), F142*G142/100,F142*G142) -> 0.00
A144: 3878 | B144: I2.8 | D144: DISTRIBUTION KIOSKS / BOARDS, SWITCHGEAR AND EQUIPMENT
A146: 3879 | B146: I2.8.1 | D146: KIOSK-MAIN (main connection after Genset) | E146: Sum | F146: 1.0 | G146: 0.00 | H146: =IF(E146 = CHAR(37), F146*G146/100,F146*G146) -> 0.00
B148: Total Carried Forward | H148: =SUM(H101:H147) -> 500 000.00
B149: WESTERN WASTE MANAGEMENT FACILITY
B150: Contract A - Roads, Platforms, Building and Services
B151: I: ELECTRICAL
H152: 2: ELECTRICAL
B153: ITEM NO | C153: PAYMENT | D153: DESCRIPTION | E153: UNIT | F153: QTY | G153: RATE | H153: AMOUNT R
B154: Brought Forward | H154: =H148 -> 500 000.00
A155: 3880 | B155: I2.8.2 | D155: DB (Office DB - floor standing) | E155: Sum | F155: 1.0 | G155: 0.00 | H155: =IF(E155 = CHAR(37), F155*G155/100,F155*G155) -> 0.00
A157: 3881 | B157: I2.8.3 | D157: DB (Gate House) | E157: Sum | F157: 1.0 | G157: 0.00 | H157: =IF(E157 = CHAR(37), F157*G157/100,F157*G157) -> 0.00
A159: 3882 | B159: I2.8.4 | D159: DB (Weigh-Bridge - floor standing) | E159: Sum | F159: 1.0 | G159: 0.00 | H159: =IF(E159 = CHAR(37), F159*G159/100,F159*G159) -> 0.00
A161: 3883 | B161: I2.9 | D161: EMERGENCY GENERATOR
A163: 3884 | D163: Supply, install, connect and commission an Emergency Generator Set, with diesel tank, control & change-over panel, battery charger, etc., complete as specified.:
A165: 3885 | B165: I2.9.1 | D165: Emergency Generator • 400 kVA (minimum) Standby Power Emergency Generator Set, • Enclosed in canopy (soundproof container set), • Change-over Panel, • Controller(s) for automatic change-over and engine management must support Modbus TCP/IP Ethernet Connection Communication Protocal (RJ45 connector), to enable connection with BMS-system via TCP/IP ethernet connection. | E165: Sum | F165: 1.0 | G165: 0.00 | H165: =IF(E165 = CHAR(37), F165*G165/100,F165*G165) -> 0.00
A167: 3886 | B167: I2.9.2 | D167: 12-month Guarantee Maintenance after commissioning (2 x full servicing during this period) Pricing per service | E167: No. | F167: 2.0 | G167: 0.00 | H167: =IF(E167 = CHAR(37), F167*G167/100,F167*G167) -> 0.00
A169: 3887 | B169: I2.9.3 | D169: Danger Signs and Notice Boards | E169: Sum | F169: 1.0 | G169: 0.00 | H169: =IF(E169 = CHAR(37), F169*G169/100,F169*G169) -> 0.00
A171: 3888 | B171: I2.9.4 | D171: First Aid Kit | E171: Sum | F171: 1.0 | G171: 0.00 | H171: =IF(E171 = CHAR(37), F171*G171/100,F171*G171) -> 0.00
A173: 3889 | B173: I2.9.5 | D173: Fire Extinguisher | E173: Sum | F173: 1.0 | G173: 0.00 | H173: =IF(E173 = CHAR(37), F173*G173/100,F173*G173) -> 0.00
A175: 3890 | B175: I2.9.6 | D175: Pump - PC Amount - to pump diesel from ground floor to roof (pump head ± 40m) | E175: Sum | F175: 1.0 | G175: 0.00 | H175: =IF(E175 = CHAR(37), F175*G175/100,F175*G175) -> 0.00
A177: 3891 | B177: I2.9.7 | D177: Crane - for rigging Genset into place | E177: Sum | F177: 1.0 | G177: 0.00 | H177: =IF(E177 = CHAR(37), F177*G177/100,F177*G177) -> 0.00
B198: Total Carried Forward To Summary | H198: =SUM(H154:H197) -> 500 000.00
B199: WESTERN WASTE MANAGEMENT FACILITY
B200: Contract A - Roads, Platforms, Building and Services
B201: I: ELECTRICAL
D202: SUMMARY OF SECTIONS
C203: SECTION | D203: DESCRIPTION | H203: AMOUNT R
C204: I1 | D204: FIXED CHARGES | H204: =H43 -> 0.00
C206: I2 | D206: ELECTRICAL | H206: =H198 -> 500 000.00
C208: Total Carried Forward To Summary Of Schedules | H208: =SUM(H204:H207) -> 500 000.00

Sheet Schedule 10
A1: Rate=G | B1: WESTERN WASTE MANAGEMENT FACILITY
B2: Contract A - Roads, Platforms, Building and Services
B3: J: BUILDINGS
H4: 1: WEIGHBRIDGE
B5: ITEM NO | C5: PAYMENT | D5: DESCRIPTION | E5: UNIT | F5: QTY | G5: RATE | H5: AMOUNT R
A6: 3892 | D6: SECTION 1: WEIGHBRIDGE
A8: 4001 | B8: J1.1 | C8: 1200 DA | D8: EXCAVATION
A10: 4002 | B10: J1.1.1 | C10: 8.3.2 | D10: Excavate in all materials and backfill or place embankment for:
A12: 4003 | D12: i) Weighbridge (including for foundation layers) | E12: m³ | F12: 50.0 | G12: 0.00 | H12: =IF(E12 = CHAR(37), F12*G12/100,F12*G12) -> 0.00
A14: 4004 | B14: J1.1.2 | D14: Extra-over item .2.1 for excavation in:
A16: 4006 | D16: i) Hard rock material | E16: m³ | F16: 10.0 | G16: 0.00 | H16: =IF(E16 = CHAR(37), F16*G16/100,F16*G16) -> 0.00
A18: 4013 | B18: J1.1.3 | D18: TREATMENT OF ROAD-BED
A20: 4014 | B20: J1.1.3.1 | C20: 8.3.3(a) | D20: Road-bed preparation and compaction of material
A22: 4015 | D22: i) Compact to 90 % mod. AASHTO maximum density | E22: m³ | F22: 70.0 | G22: 0.00 | H22: =IF(E22 = CHAR(37), F22*G22/100,F22*G22) -> 0.00
A24: 4018 | B24: J1.1.4 | C24: 8.3.3(b) | D24: In-place treatment of road-bed in intermediate or hard material
A26: 4020 | D26: i) Blasting | E26: m³ | F26: 20.0 | G26: 0.00 | H26: =IF(E26 = CHAR(37), F26*G26/100,F26*G26) -> 0.00
A28: 4021 | B28: J1.2 | C28: SANS 1200 ME | D28: SECTION : SUBBASE
A30: 4022 | B30: J1.2.1 | C30: 8.3.1 | D30: Construct gravel subbase with material from commercial sources
A32: 4023 | D32: i) 150 mm layers to foundation, compacted to 95% Mod AASHTO | E32: m³ | F32: 150.0 | G32: 0.00 | H32: =IF(E32 = CHAR(37), F32*G32/100,F32*G32) -> 0.00
A34: 4025 | B34: J1.3 | C34: SANS 1200 G 8.1.3 | D34: CONCRETE
A36: 4026 | B36: J1.3.1 | C36: 8.4.2 | D36: Blinding layer in 20 MPa/40 mm concrete
A38: 4027 | D38: i) 75 mm minimum thickness | E38: m² | F38: 50.0 | G38: 0.00 | H38: =IF(E38 = CHAR(37), F38*G38/100,F38*G38) -> 0.00
A40: 4028 | B40: J1.3.2 | C40: 8.4.3 | D40: Strength concrete: 20 MPa/40mm
A42: 4029 | D42: i) Footings | E42: m³ | F42: 5.0 | G42: 0.00 | H42: =IF(E42 = CHAR(37), F42*G42/100,F42*G42) -> 0.00
A44: 4030 | B44: J1.3.3 | D44: Strength concrete: 30 MPa/40mm
A46: 4031 | D46: i) Floor slabs | E46: m³ | F46: 50.0 | G46: 0.00 | H46: =IF(E46 = CHAR(37), F46*G46/100,F46*G46) -> 0.00
A48: 4032 | D48: ii) Walls and plinths | E48: m³ | F48: 10.0 | G48: 0.00 | H48: =IF(E48 = CHAR(37), F48*G48/100,F48*G48) -> 0.00
A50: 4042 | B50: J1.4 | C50: 8.1.1 | D50: FORMWORK
A52: 4043 | B52: J1.4.1 | C52: 8.2.1 | D52: Rough walls below ground
A54: 4044 | D54: i) Vertical plane | E54: m² | F54: 50.0 | G54: 0.00 | H54: =IF(E54 = CHAR(37), F54*G54/100,F54*G54) -> 0.00
B60: Total Carried Forward | H60: =SUM(H6:H59) -> 0.00
B61: WESTERN WASTE MANAGEMENT FACILITY
B62: Contract A - Roads, Platforms, Building and Services
B63: J: BUILDINGS
H64: 1: WEIGHBRIDGE
B65: ITEM NO | C65: PAYMENT | D65: DESCRIPTION | E65: UNIT | F65: QTY | G65: RATE | H65: AMOUNT R
B66: Brought Forward | H66: =H60 -> 0.00
A67: 4045 | B67: J1.4.2 | C67: 8.2.2 | D67: Smooth vertical plane to:
A69: 4046 | D69: i) Walls and plinths | E69: m² | F69: 150.0 | G69: 0.00 | H69: =IF(E69 = CHAR(37), F69*G69/100,F69*G69) -> 0.00
A71: 4115 | B71: J1.4.3 | D71: Forming of tapered pockets to receved load cell (smooth finish) | E71: No. | F71: 16 | G71: 0.00 | H71: =IF(E71 = CHAR(37), F71*G71/100,F71*G71) -> 0.00
A73: 4063 | B73: J1.5 | C73: 8.1.2 | D73: STEEL REINFORCING
A75: 4064 | B75: J1.5.1 | C75: 8.1.2.2 | D75: Mild steel bars | E75: t | F75: 0.5 | G75: 0.00 | H75: =IF(E75 = CHAR(37), F75*G75/100,F75*G75) -> 0.00
A77: 4074 | B77: J1.5.2 | C77: 8.3.1 8.1.2.2 | D77: High-tensile steel bars | E77: t | F77: 4.0 | G77: 0.00 | H77: =IF(E77 = CHAR(37), F77*G77/100,F77*G77) -> 0.00
A79: 4084 | B79: J1.5.3 | C79: 8.3.2 | D79: High-tensile welded mesh reinforcement | E79: t | F79: 0.5 | G79: 0.00 | H79: =IF(E79 = CHAR(37), F79*G79/100,F79*G79) -> 0.00
A81: 4088 | B81: J1.6 | C81: 8.4.4 | D81: UNFORMED SURFACE FINISHES
A83: 4092 | B83: J1.6.1 | D83: Wood-floated finish (see PSG 7.2)
A85: 4093 | D85: i) Floors | E85: m² | F85: 300.0 | G85: 0.00 | H85: =IF(E85 = CHAR(37), F85*G85/100,F85*G85) -> 0.00
A87: 4094 | D87: ii) Plinths and Walls | E87: m² | F87: 50.0 | G87: 0.00 | H87: =IF(E87 = CHAR(37), F87*G87/100,F87*G87) -> 0.00
A89: 4099 | B89: J1.7 | C89: 8.5 | D89: JOINTS
A91: 4100 | D91: Expansion joints (10mm with polysulphide sealer) | E91: m | F91: 40.0 | G91: 0.00 | H91: =IF(E91 = CHAR(37), F91*G91/100,F91*G91) -> 0.00
A93: 4107 | B93: J1.8 | D93: WEIGHBRIDGE
A95: 4108 | D95: Supply and install
A97: 4109 | B97: J1.8.1 | D97: Weighbridge deck complete including load cells (18.0m x 3.0m) incuding certification | E97: PCsum | F97: 2 | G97: 750 000.00 | H97: 1500 000.00
A99: 4111 | B99: J1.8.2 | D99: Contractors markup on J1.8.1 | E99: % | F99: =H97 -> 1500 000 | G99: 0.00 | H99: =IF(E99 = CHAR(37), F99*G99/100,F99*G99) -> 0.00
A101: 4112 | B101: J1.9 | D101: ANCILLIARY
A103: 4113 | B103: J1.9.1 | D103: Steel grid on brick piers (Rectagrid 60 x 4.5 or equivalent) | E103: m² | F103: 100 | G103: 0.00 | H103: =IF(E103 = CHAR(37), F103*G103/100,F103*G103) -> 0.00
A105: 4114 | B105: j1.9.2 | D105: Brick piers to support Steel grid - 230 brickwork | E105: m² | F105: 50 | G105: 0.00 | H105: =IF(E105 = CHAR(37), F105*G105/100,F105*G105) -> 0.00
B123: Total Carried Forward To Summary | H123: =SUM(H66:H122) -> 1500 000.00
B124: WESTERN WASTE MANAGEMENT FACILITY
B125: Contract A - Roads, Platforms, Building and Services
B126: J: BUILDINGS
D127: SUMMARY OF SECTIONS
C128: SECTION | D128: DESCRIPTION | H128: AMOUNT R
C129: J1 | D129: WEIGHBRIDGE | H129: =H123 -> 1500 000.00
C131: Total Carried Forward To Summary Of Schedules | H131: =SUM(H129:H130) -> 1500 000.00

Sheet Summary
A1: Rate=G | B1: WESTERN WASTE MANAGEMENT FACILITY
B2: Contract A - Roads, Platforms, Building and Services
D3: SUMMARY OF SCHEDULES
C4: SCHEDULE | D4: DESCRIPTION | H4: AMOUNT R
C5: A | D5: A: PRELIMINARY AND GENERAL | H5: ='Schedule 1'!H305 -> 6317 000.00
C7: B | D7: B: ROADS AND EARTHWORKS | H7: ='Schedule 2'!H1496 -> 0.00
C9: C | D9: C: STORMWATER | H9: ='Schedule 3'!H320 -> 0.00
C11: D | D11: D: CONTAMINATED STORMWATER | H11: ='Schedule 4'!H199 -> 0.00
C13: E | D13: E: SEWER | H13: ='Schedule 5'!H194 -> 0.00
C15: F | D15: F: WATERMAINS | H15: ='Schedule 6'!H370 -> 0.00
C17: G | D17: G: CABLE DUCTS | H17: ='Schedule 7'!H202 -> 0.00
C19: H | D19: H: FENCING | H19: ='Schedule 8'!H65 -> 0.00
C21: I | D21: I: ELECTRICAL | H21: ='Schedule 9'!H208 -> 500 000.00
C23: J | D23: J: BUILDINGS | H23: ='Schedule 10'!H131 -> 1500 000.00
D25: SUBTOTAL 1 | H25: =SUM(H5:H24) -> 8317 000.00
C27: 1 | D27: CONTINGENCIES (10% OF SUBTOTAL 1) | H27: =H25*10/100 -> 831 700.00
D28: SUBTOTAL 2 | H28: =SUM(H25:H27) -> 9148 700.00
C30: 2 | D30: CONTRACT PRICE ADJUSTMENT (10% OF SUBTOTAL 2) | H30: =H28*10/100 -> 914 870.00
D31: SUBTOTAL 3 | H31: =SUM(H28:H30) -> 10063 570.00
C33: 3 | D33: VAT (15% OF SUBTOTAL 3) | H33: =H31*15/100 -> 1509 535.50
C34: Total Carried Forward To Form Of Offer | H34: =SUM(H31:H33) -> 11573 105.50
